Workbook

Sheet WKS1_EVAL
A1: Worksheet 1 - Project Description
A3: 1 | B3: Applicant's Details
B5: Organisation Name | H5: Legend
B6: MRRG Reference | I6: Calculated value
B7: Assessor(s) name and position | I7: Free-text user input
B8: Reviewer(s) name and position | I8: Dropdown selection
A10: 2 | B10: Project Overview
B12: Project Name
B13: Project Type | D13: Isolated intersection/intersection as part of route improvement
B14: Mid-block section/intersection under consideration (SLKs)
B15: Road Type | D15: District Distributor A
A17: 3 | B17: Problem Description
B19: Describe issue/problems to be addressed
A21: 4 | B21: Location Details
B23: Brief description of location
A25: 5 | B25: Project Strategic Alignment | D25: Yes | E25: =IF(D25="No", "This project does not warrant MRRG funding", "") -> 
B27: Justification
A29: 6 | B29: Project Details
B31: Describe the do-minimum
B32: Summarise options assessed
D33: Do Minimum | E33: Option
B34: Length | F34: km
B35: Total number of traffic lanes | D35: 2 | E35: 4
B36: Urban/rural | D36: Urban Road | E36: Urban Road
B37: Speed limit | D37: 60 | E37: 60 | F37: km/h
A39: 7 | B39: Construction Details
B41: Time zero | E41: (dd/mm/yyyy)
A43: 8 | B43: Time Frame Information
B45: Date of economic evaluation | E45: (dd/mm/yyyy)
B46: Base date for costs and benefits | D46: 2012-07-01 | E46: (dd/mm/yyyy)
A48: 9 | B48: Traffic Growth
B50: ROM24 daily traffic flow 2021 | E50: vehicles per day
B51: ROM24 daily traffic flow 2036 | E51: vehicles per day
B52: Annual geometric traffic growth | D52: =IFERROR(+((D51/D50)^(0.0666666666666667))-1,"") -> 
B53: Email TMS@mainroads.wa.gov.au to request ROM24 traffic flows. Include "MRRG Submission" in the Subject Header for priority response

Sheet WKS2_MINCOST
A1: Worksheet 2 - Cost of the Do-minimum
A3: 1 | B3: Road Type | E3: =WKS1_EVAL!D15 -> District Distributor A
A5: 2 | B5: PV of annual maintenance costs
F7: ="x " & DISCOUNTFACTOR_PV_DOMIN -> x 11.7023 | H7: =E7*DISCOUNTFACTOR_PV_DOMIN -> 0 | I7: (a)
A9: 3 | B9: PV of periodic maintenance costs
B11: Proposed Rehab treatment measure | E11: =VLOOKUP(E3, CFG_LookupTables!A103:B107, 2, FALSE) -> 40mm SMA overlay
B12: Rehab treatment cost | H12: =VLOOKUP(E11, CFG_LookupTables!A91:B100, 2, FALSE) -> 21.5
B13: Site treatment area (from SLK to SLK) | I13: m2
B14: Rehab cost | H14: =H12*H13 -> 0
B16: Periodic maintenance will be required in the following years:
C18: Year | D18: Type of Maintenance | E18: Required? | F18: Estimated Cost | G18: SPPWF | I18: PV
C19: 5 | D19: =$E$11 -> 40mm SMA overlay | E19: N/A | F19: =$H$14 -> 0 | G19: =IF(ISNA(VLOOKUP(C19, LUT_SPPWF, 2, FALSE)), "", VLOOKUP(C19, LUT_SPPWF, 2, FALSE)) -> 0.68 | I19: =IF(E19 = "Yes", IF(ISNUMBER(G19), F19*G19, ""), "N/A") -> N/A
C20: 10 | D20: 40mm SMA overlay | E20: =IF($E$3 = "Primary Distributor", "Yes", "N/A") -> N/A | F20: 0 | G20: 0.464 | I20: N/A
C21: 15 | D21: 40mm SMA overlay | E21: =IF(OR($E$3 = "District Distributor A", $E$3 = "District Distributor B"), "Yes", "N/A") -> Yes | F21: 0 | G21: 0.32 | I21: 0
C22: 20 | D22: 40mm SMA overlay | E22: =IF(OR($E$3 = "Primary Distributor", $E$3 = "Local Distributor"), "Yes", "N/A") -> N/A | F22: 0 | G22: 0.21 | I22: N/A
C23: 25 | D23: 40mm SMA overlay | E23: N/A | F23: 0 | G23: 0.15 | I23: N/A
C24: 30 | D24: 40mm SMA overlay | E24: =IF(OR($E$3 = "Primary Distributor", $E$3 = "District Distributor A", $E$3 = "District Distributor B"), "Yes", "N/A") -> Yes | F24: 0 | G24: 0.1 | I24: 0
G26: Sum of PV maintenance | H26: =SUMIF(I19:I24, "<>#N/A") -> 0 | I26: (b)
A28: 4 | B28: PV of annual associated operating cost
C30: Luminaire Type | H30: ZE02C - 80MV
C31: Number of luminaires within study section | I31: units
C32: Number of days luminaires are lit | I32: days
C33: Total operating cost | H33: =VLOOKUP(H30,CFG_LookupTables!A232:D241, 4, FALSE) *H31 * H32 -> 0
C35: PV of total operating cost
E36: =H33 -> 0 | F36: ="x " & DISCOUNTFACTOR_PV_DOMIN -> x 11.7023 | H36: =E36*DISCOUNTFACTOR_PV_DOMIN -> 0 | I36: (c)
A38: 5 | B38: PV total Do-minimum maintenance costs
G40: (a) + (b) + (c) | H40: =H7+H26+H36 -> 0 | I40: A

Sheet WKS3_OPTCOST
A1: Worksheet 3 - Cost of the Option
A3: 1 | B3: Road Type | E3: =WKS1_EVAL!D15 -> District Distributor A
A5: 2 | B5: PV of estimated cost of proposed work (as per attached estimate sheet)
F7: ="x " & "0.9259" -> x 0.9259 | H7: =E7*0.9259 -> 0 | I7: (a)
A9: 3 | B9: PV of routine maintenance costs following completion of the work
F11: ="x " & DISCOUNTFACTOR_PV_OPT -> x 10.7398 | H11: =E11*DISCOUNTFACTOR_PV_OPT -> 0 | I11: (b)
A13: 4 | B13: PV of maintenance cost in year 1
H15: =WKS2_MINCOST!E7 -> 0 | I15: (c)
A17: 5 | B17: PV of Option periodic maintenance cost
B19: Proposed Rehab treatment measure | E19: =VLOOKUP(E3, CFG_LookupTables!A103:B107, 2, FALSE) -> 40mm SMA overlay
B20: Rehab treatment cost | H20: =VLOOKUP(E19, CFG_LookupTables!A91:B100, 2, FALSE) -> 21.5
B21: Site treatment area (from SLK to SLK) | I21: m2
B22: Rehab cost | H22: =H20*H21 -> 0
B24: Periodic maintenance will be required in the following years:
C26: Year | D26: Type of Maintenance | E26: Required? | F26: Estimated Cost | G26: SPPWF | I26: PV
C27: 5 | D27: =$E$19 -> 40mm SMA overlay | E27: N/A | F27: =$H$22 -> 0 | G27: =IF(ISNA(VLOOKUP(C27, LUT_SPPWF, 2, FALSE)), "", VLOOKUP(C27, LUT_SPPWF, 2, FALSE)) -> 0.68 | I27: =IF(E27 = "Yes", IF(ISNUMBER(G27), F27*G27, ""), "N/A") -> N/A
C28: 10 | D28: 40mm SMA overlay | E28: =IF($E$3 = "Primary Distributor", "Yes", "N/A") -> N/A | F28: 0 | G28: 0.464 | I28: N/A
C29: 15 | D29: 40mm SMA overlay | E29: =IF(OR($E$3 = "District Distributor A", $E$5 = "District Distributor B"), "Yes", "N/A") -> Yes | F29: 0 | G29: 0.32 | I29: 0
C30: 20 | D30: 40mm SMA overlay | E30: =IF(OR($E$3 = "Primary Distributor", $E$5 = "Local Distributor"), "Yes", "N/A") -> N/A | F30: 0 | G30: 0.21 | I30: N/A
C31: 25 | D31: 40mm SMA overlay | E31: N/A | F31: 0 | G31: 0.15 | I31: N/A
C32: 30 | D32: 40mm SMA overlay | E32: =IF(OR($E$3 = "Primary Distributor", $E$3 = "District Distributor A", $E$3 = "District Distributor B"), "Yes", "N/A") -> Yes | F32: 0 | G32: 0.1 | I32: 0
F34: Sum of PV maintenance | H34: =SUMIF(I27:I32, "<>#N/A") -> 0 | I34: (d)
A36: 6 | B36: PV of Annual associated operating cost
C38: Luminaire Type | H38: ZE20C - 70ML
C39: Number of luminaires within study section | I39: units
C40: Number of days luminaires are lit | I40: days
C41: Total operating cost | H41: =VLOOKUP(H38, CFG_LookupTables!A232:D241, 4, FALSE) *H39 * H40 -> 0
B43: PV of annual operating costs (separate to maintenance costs)
D44: Total | E44: =H41 -> 0 | F44: ="x " & DISCOUNTFACTOR_PV_OPT -> x 10.7398 | H44: =E44*10.7398 -> 0 | I44: (e)
A46: 7 | B46: PV total costs of the preferred option
G48: (a) + (b) + (c) + (d) + (e) | H48: =H7+H15+H11+H34+H44 -> 0 | I48: B

Sheet WKS4_TTCOSTSAV
A1: Worksheet 4 - Travel Time Cost Savings
A3: 1 | B3: Road Type | D3: =WKS1_EVAL!D15 -> District Distributor A
A5: 2 | B5: Project Type | D5: =WKS1_EVAL!D13 -> Isolated intersection/intersection as part of route improvement
A7: 3 | B7: Modelling Period Type | D7: AM / Inter / PM peak periods
A9: 4 | B9: Midblock Assessment - Traffic Volumes
D10: DO MINIMUM | J10: OPTION
D11: Time Zero (veh/hr) | E11: Year 2 | F11: Year 8 | G11: Year 15 | H11: Year 30 | J11: Time Zero (veh/hr) | K11: Year 2 | L11: Year 8 | M11: Year 15 | N11: Year 30
C12: AM Peak | E12: =+((1+WKS1_EVAL!$D$52)^2)*$D12 ->  | F12: =+((1+WKS1_EVAL!$D$52)^8)*$D12 ->  | G12: =+((1+WKS1_EVAL!$D$52)^15)*$D12 ->  | H12: =+G12 ->  | K12: =+((1+WKS1_EVAL!$D$52)^2)*$J12 ->  | L12: =+((1+WKS1_EVAL!$D$52)^8)*$J12 ->  | M12: =+((1+WKS1_EVAL!$D$52)^15)*$J12 ->  | N12: =+M12 -> 
C13: Interpeak | E13: =+((1+WKS1_EVAL!$D$52)^2)*$D13 ->  | F13: =+((1+WKS1_EVAL!$D$52)^8)*$D13 ->  | G13: =+((1+WKS1_EVAL!$D$52)^15)*$D13 ->  | H13: =+G13 ->  | K13: =+((1+WKS1_EVAL!$D$52)^2)*$J13 ->  | L13: =+((1+WKS1_EVAL!$D$52)^8)*$J13 ->  | M13: =+((1+WKS1_EVAL!$D$52)^15)*$J13 ->  | N13: =+M13 -> 
C14: PM Peak | E14: =+((1+WKS1_EVAL!$D$52)^2)*$D14 ->  | F14: =+((1+WKS1_EVAL!$D$52)^8)*$D14 ->  | G14: =+((1+WKS1_EVAL!$D$52)^15)*$D14 ->  | K14: =+((1+WKS1_EVAL!$D$52)^2)*$J14 ->  | L14: =+((1+WKS1_EVAL!$D$52)^8)*$J14 ->  | M14: =+((1+WKS1_EVAL!$D$52)^15)*$J14 ->  | N14: =+M14 -> 
C15: AADT All periods | E15: =+((1+WKS1_EVAL!$D$52)^2)*$D15 ->  | F15: =+((1+WKS1_EVAL!$D$52)^8)*$D15 ->  | G15: =+((1+WKS1_EVAL!$D$52)^15)*$D15 ->  | H15: =+G15 ->  | K15: =+((1+WKS1_EVAL!$D$52)^2)*$J15 ->  | L15: =+((1+WKS1_EVAL!$D$52)^8)*$J15 ->  | M15: =+((1+WKS1_EVAL!$D$52)^15)*$J15 ->  | N15: =+M15 -> 
A17: 5 | B17: Do-minimum Modelling
C19: 5A Project Timings from Annualisation Factors | H19: 5B Isolated Intersection | L19: 5C Road Midblock Improvement | P19: 5D Annual Travel Time Cost ($/year)
E20: Time Periods | G20: TTC | H20: Modelling Results Inputs (veh.hr/hr) | L20: Modelling Results Inputs (veh.hr/hr)
C21: Time Period | D21: Flow Factor | E21: hours/day | F21: days/year | G21: $/HR | H21: Year 2 | I21: Year 8 | J21: Year 15 | K21: Year 30 | L21: Year 2 | M21: Year 8 | N21: Year 15 | O21: Year 30 | P21: Year 2 | Q21: Year 8 | R21: Year 15 | S21: Year 30
C22: Weekday AM Peak | D22: 1 | E22: 2 | F22: 245 | G22: =IF($D$3="District Distributor A",VLOOKUP(C22,LUT_TTCDistrictDistributors,2,FALSE),IF($D$3="District Distributor B",VLOOKUP(C22,LUT_TTCDistrictDistributors,2,FALSE),0)) -> 22.54 | K22: =J22 -> 0 | L22: =E$12*WKS1_EVAL!$D$34/WKS5_VOCSAV!H59 ->  | M22: =F$12*WKS1_EVAL!$D$34/WKS5_VOCSAV!I59 ->  | N22: =G$12*WKS1_EVAL!$D$34/WKS5_VOCSAV!J59 ->  | O22: =H$12*WKS1_EVAL!$D$34/WKS5_VOCSAV!K59 ->  | P22: =IF($D$5 <> "Mid-block/mid-block as part of route improvement", $E22*$F22*$G22*H22, $E22 *$F22*$G22*L22) -> 0 | Q22: 0 | R22: 0 | S22: 0 | T22: (a)
C23: Weekday Interpeak | D23: 1 | E23: 8 | F23: 245 | G23: 27.01 | K23: =J23 -> 0 | L23: =E$12*WKS1_EVAL!$D$34/WKS5_VOCSAV!H60 ->  | M23: =F$12*WKS1_EVAL!$D$34/WKS5_VOCSAV!I60 ->  | N23: =G$12*WKS1_EVAL!$D$34/WKS5_VOCSAV!J60 ->  | O23: =H$12*WKS1_EVAL!$D$34/WKS5_VOCSAV!K60 ->  | P23: 0 | Q23: 0 | R23: 0 | S23: 0 | T23: (b)
C24: Weekday PM Peak | D24: 1 | E24: 2 | F24: 245 | G24: 22.3 | K24: =J24 -> 0 | L24: =E$12*WKS1_EVAL!$D$34/WKS5_VOCSAV!H61 ->  | M24: =F$12*WKS1_EVAL!$D$34/WKS5_VOCSAV!I61 ->  | N24: =G$12*WKS1_EVAL!$D$34/WKS5_VOCSAV!J61 ->  | O24: =H$12*WKS1_EVAL!$D$34/WKS5_VOCSAV!K61 ->  | P24: 0 | Q24: 0 | R24: 0 | S24: 0 | T24: (c)
C25: Weekday Off Peak | D25: 0.25 | E25: 12 | F25: 245 | G25: 22.91 | H25: =$D25*H$23 -> 0 | I25: 0 | J25: 0 | K25: 0 | L25: =$D25*E$13*WKS1_EVAL!$D$34/WKS5_VOCSAV!H62 ->  | M25: =$D25*F$13*WKS1_EVAL!$D$34/WKS5_VOCSAV!I62 ->  | N25: =$D25*G$13*WKS1_EVAL!$D$34/WKS5_VOCSAV!J62 ->  | O25: =$D25*H$13*WKS1_EVAL!$D$34/WKS5_VOCSAV!K62 ->  | P25: 0 | Q25: 0 | R25: 0 | S25: 0 | T25: (d)
C26: Weekend Peak | D26: 0.45 | E26: 8 | F26: 120 | G26: 25.55 | H26: 0 | I26: 0 | J26: 0 | K26: 0 | L26: =$D26*E$13*WKS1_EVAL!$D$34/WKS5_VOCSAV!H63 ->  | M26: =$D26*F$13*WKS1_EVAL!$D$34/WKS5_VOCSAV!I63 ->  | N26: =$D26*G$13*WKS1_EVAL!$D$34/WKS5_VOCSAV!J63 ->  | O26: =$D26*H$13*WKS1_EVAL!$D$34/WKS5_VOCSAV!K63 ->  | P26: 0 | Q26: 0 | R26: 0 | S26: 0 | T26: (e)
C27: Weekend Off Peak | D27: 0.15 | E27: 16 | F27: 120 | G27: 24.8 | H27: 0 | I27: 0 | J27: 0 | K27: 0 | L27: =$D27*E$13*WKS1_EVAL!$D$34/WKS5_VOCSAV!H64 ->  | M27: =$D27*F$13*WKS1_EVAL!$D$34/WKS5_VOCSAV!I64 ->  | N27: =$D27*G$13*WKS1_EVAL!$D$34/WKS5_VOCSAV!J64 ->  | O27: =$D27*H$13*WKS1_EVAL!$D$34/WKS5_VOCSAV!K64 ->  | P27: 0 | Q27: 0 | R27: 0 | S27: 0 | T27: (f)
A28: 5E | C28: All periods | D28: N/A | E28: 24 | F28: 365 | G28: 25.7 | K28: =J28 -> 0 | L28: =(E$15/24)*WKS1_EVAL!$D$34/WKS5_VOCSAV!H65 ->  | M28: =(F$15/24)*WKS1_EVAL!$D$34/WKS5_VOCSAV!I65 ->  | N28: =(G$15/24)*WKS1_EVAL!$D$34/WKS5_VOCSAV!J65 ->  | O28: =(H$15/24)*WKS1_EVAL!$D$34/WKS5_VOCSAV!K65 ->  | P28: 0 | Q28: 0 | R28: 0 | S28: 0 | T28: (g)
C29: (Q) | D29: (R) | E29: (S) | F29: (T) | G29: (U) | H29: (V) | I29: (W) | J29: (X) | K29: (Y) | L29: (V) | M29: (W) | N29: (X) | O29: (Y) | P29: =SUM(P22:P27) -> 0 | Q29: =SUM(Q22:Q27) -> 0 | R29: =SUM(R22:R27) -> 0 | S29: =SUM(S22:S27) -> 0 | T29: Total for All Day Periods
P30: =P28 -> 0 | Q30: =Q28 -> 0 | R30: =R28 -> 0 | S30: =S28 -> 0 | T30: Total for Day Long
A32: 6 | B32: Option Modelling
C34: 6A Project Timings from Annualisation Factors | H34: 6B Isolated Intersection | L34: 6C Road Midblock Improvement | P34: 6D Annual Travel Time Cost ($/year)
E35: Time Periods | G35: TTC | H35: Modelling Results Inputs (veh.hr/hr) | L35: Modelling Results Inputs (veh.hr/hr)
C36: Time Period | D36: Flow Factor | E36: hours/day | F36: days/year | G36: $/HR | H36: Year 2 | I36: Year 8 | J36: Year 15 | K36: Year 30 | L36: Year 2 | M36: Year 8 | N36: Year 15 | O36: Year 30 | P36: Year 2 | Q36: Year 8 | R36: Year 15 | S36: Year 30
C37: Weekday AM Peak | D37: =D22 -> 1 | E37: 2 | F37: 245 | G37: =IF($D$3="District Distributor A",VLOOKUP(C37,LUT_TTCDistrictDistributors,2,FALSE),IF($D$3="District Distributor B",VLOOKUP(C37,LUT_TTCDistrictDistributors,2,FALSE),0)) -> 22.54 | K37: =J37 -> 0 | L37: =K$12*WKS1_EVAL!$E$34/WKS5_VOCSAV!H90 ->  | M37: =L$12*WKS1_EVAL!$E$34/WKS5_VOCSAV!I90 ->  | N37: =M$12*WKS1_EVAL!$E$34/WKS5_VOCSAV!J90 ->  | O37: =N$12*WKS1_EVAL!$E$34/WKS5_VOCSAV!K90 ->  | P37: =IF($D$5 <> "Mid-block/mid-block as part of route improvement", $E37*$F37*$G37*H37, $E37 *$F37*$G37*L37) -> 0 | Q37: 0 | R37: 0 | S37: 0 | T37: (a)
C38: Weekday Interpeak | D38: 1 | E38: 8 | F38: 245 | G38: 27.01 | K38: =J38 -> 0 | L38: =K$12*WKS1_EVAL!$E$34/WKS5_VOCSAV!H91 ->  | M38: =L$12*WKS1_EVAL!$E$34/WKS5_VOCSAV!I91 ->  | N38: =M$12*WKS1_EVAL!$E$34/WKS5_VOCSAV!J91 ->  | O38: =N$12*WKS1_EVAL!$E$34/WKS5_VOCSAV!K91 ->  | P38: 0 | Q38: 0 | R38: 0 | S38: 0 | T38: (b)
C39: Weekday PM Peak | D39: 1 | E39: 2 | F39: 245 | G39: 22.3 | K39: =J39 -> 0 | L39: =K$12*WKS1_EVAL!$E$34/WKS5_VOCSAV!H92 ->  | M39: =L$12*WKS1_EVAL!$E$34/WKS5_VOCSAV!I92 ->  | N39: =M$12*WKS1_EVAL!$E$34/WKS5_VOCSAV!J92 ->  | O39: =N$12*WKS1_EVAL!$E$34/WKS5_VOCSAV!K92 ->  | P39: 0 | Q39: 0 | R39: 0 | S39: 0 | T39: (c)
C40: Weekday Off Peak | D40: 0.25 | E40: 12 | F40: 245 | G40: 22.91 | H40: =$D40*H$38 -> 0 | I40: 0 | J40: 0 | K40: 0 | L40: =$D40*K$13*WKS1_EVAL!$E$34/WKS5_VOCSAV!H93 ->  | M40: =$D40*L$13*WKS1_EVAL!$E$34/WKS5_VOCSAV!I93 ->  | N40: =$D40*M$13*WKS1_EVAL!$E$34/WKS5_VOCSAV!J93 ->  | O40: =$D40*N$13*WKS1_EVAL!$E$34/WKS5_VOCSAV!K93 ->  | P40: 0 | Q40: 0 | R40: 0 | S40: 0 | T40: (d)
C41: Weekend Peak | D41: 0.45 | E41: 8 | F41: 120 | G41: 25.55 | H41: 0 | I41: 0 | J41: 0 | K41: 0 | L41: =$D41*K$13*WKS1_EVAL!$E$34/WKS5_VOCSAV!H94 ->  | M41: =$D41*L$13*WKS1_EVAL!$E$34/WKS5_VOCSAV!I94 ->  | N41: =$D41*M$13*WKS1_EVAL!$E$34/WKS5_VOCSAV!J94 ->  | O41: =$D41*N$13*WKS1_EVAL!$E$34/WKS5_VOCSAV!K94 ->  | P41: 0 | Q41: 0 | R41: 0 | S41: 0 | T41: (e)
C42: Weekend Off Peak | D42: 0.15 | E42: 16 | F42: 120 | G42: 24.8 | H42: 0 | I42: 0 | J42: 0 | K42: 0 | L42: =$D42*K$13*WKS1_EVAL!$E$34/WKS5_VOCSAV!H95 ->  | M42: =$D42*L$13*WKS1_EVAL!$E$34/WKS5_VOCSAV!I95 ->  | N42: =$D42*M$13*WKS1_EVAL!$E$34/WKS5_VOCSAV!J95 ->  | O42: =$D42*N$13*WKS1_EVAL!$E$34/WKS5_VOCSAV!K95 ->  | P42: 0 | Q42: 0 | R42: 0 | S42: 0 | T42: (f)
A43: 6E | C43: All periods | D43: N/A | E43: 24 | F43: =F28 -> 365 | G43: 25.7 | K43: =J43 -> 0 | L43: =(K$15/24) * WKS1_EVAL!$E$34/WKS5_VOCSAV!H96 ->  | M43: =(L$15/24) * WKS1_EVAL!$E$34/WKS5_VOCSAV!I96 ->  | N43: =(M$15/24) * WKS1_EVAL!$E$34/WKS5_VOCSAV!J96 ->  | O43: =(N$15/24) * WKS1_EVAL!$E$34/WKS5_VOCSAV!K96 ->  | P43: =IF($D$5 <> "Mid-block/mid-block as part of route improvement", $E43*$F43*$G43*H43, $E43 *$F43*$G43*L43) -> 0 | Q43: 0 | R43: 0 | S43: 0 | T43: (g)
C44: (Q) | D44: (R) | E44: (S) | F44: (T) | G44: (U) | H44: (V) | I44: (W) | J44: (X) | K44: (Y) | L44: (V) | M44: (W) | N44: (X) | O44: (Y) | P44: =SUM(P37:P42) -> 0 | Q44: =SUM(Q37:Q42) -> 0 | R44: =SUM(R37:R42) -> 0 | S44: =SUM(S37:S42) -> 0 | T44: Total for All Day Periods
P45: =P43 -> 0 | Q45: =Q43 -> 0 | R45: =R43 -> 0 | S45: =S43 -> 0 | T45: Total for Day Long
A47: 7 | B47: Annual Travel Time Cost for Modelled Years
D49: Annual Travel Time Cost ($/year) for modelled years
D50: Start Year 2 | E50: End Year 7 | F50: Start Year 8 | G50: End Year 14 | H50: Start Year 15 | I50: End Year 30
C51: Travel Time Cost Do-minimum | D51: =IF($D$7 <> "Day long periods", P29, P30) -> 0 | E51: =IF($D$7 <> "Day long periods", Q29, Q30) -> 0 | F51: =IF($D$7 <> "Day long periods", Q29, Q30) -> 0 | G51: =IF($D$7 <> "Day long periods", R29, R30) -> 0 | H51: =IF($D$7 <> "Day long periods", R29, R30) -> 0 | I51: =IF($D$7 <> "Day long periods", S29, S30) -> 0
C52: Travel Time Cost Option | D52: =IF($D$7 <> "Day long periods",P44, P45) -> 0 | E52: =IF($D$7 <> "Day long periods",Q44, Q45) -> 0 | F52: =IF($D$7 <> "Day long periods",Q44, Q45) -> 0 | G52: =IF($D$7 <> "Day long periods",R44, R45) -> 0 | H52: =IF($D$7 <> "Day long periods",R44, R45) -> 0 | I52: =IF($D$7 <> "Day long periods",S44, S45) -> 0
C53: Midpoint | D53: Year 4 | F53: Year 11.5 | H53: Year 22
C54: Duration Years | D54: 6 | F54: 7 | H54: 16
C55: Do-minimum TTC at midpoint | D55: =SUM(D51:E51)/2 -> 0 | F55: =SUM(F51:G51)/2 -> 0 | H55: =SUM(H51:I51)/2 -> 0
C56: Option TTC at midpoint | D56: =SUM(D52:E52)/2 -> 0 | F56: =SUM(F52:G52)/2 -> 0 | H56: =SUM(H52:I52)/2 -> 0
A57: 8 | C57: Midpoint Benefits | D57: =D55-D56 -> 0 | F57: =F55-F56 -> 0 | H57: =H55-H56 -> 0
D58: m1 | F58: m2 | H58: m3
A60: 9 | B60: PV Travel Time Cost Savings
G62: [ ( m1 x 6 x 0.7416 ) + ( m2 x 7 x 0.4511 ) + ( m3 x 16 x 0.1958 ) ] | H62: =(D57*6*0.7416)+(F57*7*0.4511)+(H57*16*0.1958) -> 0 | J62: C

Sheet WKS5_VOCSAV
A1: Worksheet 5 - VOC and CO2 Cost Savings | V1: Look up values
V2: =IF($D$3="District Distributor A",4,IF($D$3="District Distributor B",2)) -> 4 | W2: Road Roughness Lookup Column
A3: 1 | B3: Road Type | D3: =WKS1_EVAL!D15 -> District Distributor A | V3: =IF($D$3="District Distributor A",2,IF($D$3="District Distributor B",2)) -> 2 | W3: VOC Lookup Column
V4: Road Roughness
A5: 2 | B5: Project Type | D5: =WKS1_EVAL!D13 -> Isolated intersection/intersection as part of route improvement | X5: Do Minimum | Y5: Option
V6: Roughness Type | X6: IRI | Y6: IRI | Z6: Dropdown
A7: 3 | B7: Modelling Period Type | D7: =WKS4_TTCOSTSAV!D7 -> AM / Inter / PM peak periods | V7: IRI Count | X7: 3 | Y7: 3 | Z7: Dropdown
V8: NAASRA Count | X8: 119 | Y8: 106 | Z8: Dropdown
A9: 4 | B9: Do-minimum Traffic Flow | D9: MID BLOCK ONLY | V9: Cents/km | X9: =IF(X6 = "IRI", VLOOKUP(WKS5_VOCSAV!X7,LUT_RoughnessCost, V2+1, TRUE), VLOOKUP(WKS5_VOCSAV!X8,CFG_LookupTables!$B$111:$E$123, V2, TRUE)) -> 0 | Y9: =IF(Y6 = "IRI", VLOOKUP(WKS5_VOCSAV!Y7,LUT_RoughnessCost, V2+1, TRUE), VLOOKUP(WKS5_VOCSAV!Y8,CFG_LookupTables!$B$111:$E$123, V2, TRUE)) -> 0 | Z9: =IF($D$3="Access Road", 4, IF($D$3="Distributor A or B",2,IF($D$3="Local Distributor / Industrial Road",3))) -> FALSE
C11: 4A Project timings from Annualisation Factors | G11: 4B Traffic Flow Data (veh/hr)
E12: Time periods
C13: Time Period | D13: Flow Factor | E13: Time periods (hrs/day) | F13: Days/year | G13: Year 2 | H13: Year 8 | I13: Year 15 | J13: Year 30
C14: Weekday AM Peak | D14: =WKS4_TTCOSTSAV!D22 -> 1 | E14: =WKS4_TTCOSTSAV!E22 -> 2 | F14: =WKS4_TTCOSTSAV!F22 -> 245 | G14: =WKS4_TTCOSTSAV!E12 ->  | H14: =WKS4_TTCOSTSAV!F12 ->  | I14: =WKS4_TTCOSTSAV!G12 ->  | J14: =WKS4_TTCOSTSAV!H12 ->  | K14: (a)
C15: Weekday Interpeak | D15: =WKS4_TTCOSTSAV!D23 -> 1 | E15: =WKS4_TTCOSTSAV!E23 -> 8 | F15: =WKS4_TTCOSTSAV!F23 -> 245 | G15: =WKS4_TTCOSTSAV!E13 ->  | H15: =WKS4_TTCOSTSAV!F13 ->  | I15: =WKS4_TTCOSTSAV!G13 ->  | J15: =WKS4_TTCOSTSAV!H13 ->  | K15: (b)
C16: Weekday PM Peak | D16: =WKS4_TTCOSTSAV!D24 -> 1 | E16: =WKS4_TTCOSTSAV!E24 -> 2 | F16: =WKS4_TTCOSTSAV!F24 -> 245 | G16: =WKS4_TTCOSTSAV!E14 ->  | H16: =WKS4_TTCOSTSAV!F14 ->  | I16: =WKS4_TTCOSTSAV!G14 ->  | J16: =WKS4_TTCOSTSAV!H14 ->  | K16: (c)
C17: Weekday Off Peak | D17: =WKS4_TTCOSTSAV!D25 -> 0.25 | E17: =WKS4_TTCOSTSAV!E25 -> 12 | F17: =WKS4_TTCOSTSAV!F25 -> 245 | G17: =$D17*WKS4_TTCOSTSAV!E$13 ->  | H17: =$D17*WKS4_TTCOSTSAV!F$13 ->  | I17: =$D17*WKS4_TTCOSTSAV!G$13 ->  | J17: =$D17*WKS4_TTCOSTSAV!H$13 ->  | K17: (d)
C18: Weekend Peak | D18: =WKS4_TTCOSTSAV!D26 -> 0.45 | E18: =WKS4_TTCOSTSAV!E26 -> 8 | F18: =WKS4_TTCOSTSAV!F26 -> 120 | G18: =$D18*WKS4_TTCOSTSAV!E$13 ->  | H18: =$D18*WKS4_TTCOSTSAV!F$13 ->  | I18: =$D18*WKS4_TTCOSTSAV!G$13 ->  | J18: =$D18*WKS4_TTCOSTSAV!H$13 ->  | K18: (e)
C19: Weekend Off Peak | D19: =WKS4_TTCOSTSAV!D27 -> 0.15 | E19: =WKS4_TTCOSTSAV!E27 -> 16 | F19: =WKS4_TTCOSTSAV!F27 -> 120 | G19: =$D19*WKS4_TTCOSTSAV!E$13 ->  | H19: =$D19*WKS4_TTCOSTSAV!F$13 ->  | I19: =$D19*WKS4_TTCOSTSAV!G$13 ->  | J19: =$D19*WKS4_TTCOSTSAV!H$13 ->  | K19: (f)
G20: AADT (veh/day)
C21: All periods | D21: N/A | E21: =WKS4_TTCOSTSAV!E28 -> 24 | F21: =WKS4_TTCOSTSAV!F28 -> 365 | G21: =WKS4_TTCOSTSAV!E15 ->  | H21: =WKS4_TTCOSTSAV!F15 ->  | I21: =WKS4_TTCOSTSAV!G15 ->  | J21: =WKS4_TTCOSTSAV!H15 ->  | K21: (g)
C22: (Q) | D22: (R) | E22: (S) | F22: (T) | G22: (U) | H22: (V) | I22: (W) | J22: (X)
A24: 5 | B24: Option Traffic Flow | D24: MID BLOCK ONLY
C26: 5A Project timings from Annualisation Factors | G26: 5B Traffic Flow Data (veh/hr)
E27: Time periods
C28: Time Period | D28: Flow Factor | E28: Time periods (hrs/day) | F28: Days/year | G28: Year 2 | H28: Year 8 | I28: Year 15 | J28: Year 30
C29: Weekday AM Peak | D29: =WKS4_TTCOSTSAV!D37 -> 1 | E29: =WKS4_TTCOSTSAV!E37 -> 2 | F29: =WKS4_TTCOSTSAV!F37 -> 245 | G29: =WKS4_TTCOSTSAV!K12 ->  | H29: =WKS4_TTCOSTSAV!L12 ->  | I29: =WKS4_TTCOSTSAV!M12 ->  | J29: =WKS4_TTCOSTSAV!N12 ->  | K29: (a)
C30: Weekday Interpeak | D30: =WKS4_TTCOSTSAV!D38 -> 1 | E30: =WKS4_TTCOSTSAV!E38 -> 8 | F30: =WKS4_TTCOSTSAV!F38 -> 245 | G30: =WKS4_TTCOSTSAV!K13 ->  | H30: =WKS4_TTCOSTSAV!L13 ->  | I30: =WKS4_TTCOSTSAV!M13 ->  | J30: =WKS4_TTCOSTSAV!N13 ->  | K30: (b)
C31: Weekday PM Peak | D31: =WKS4_TTCOSTSAV!D39 -> 1 | E31: =WKS4_TTCOSTSAV!E39 -> 2 | F31: =WKS4_TTCOSTSAV!F39 -> 245 | G31: =WKS4_TTCOSTSAV!K14 ->  | H31: =WKS4_TTCOSTSAV!L14 ->  | I31: =WKS4_TTCOSTSAV!M14 ->  | J31: =WKS4_TTCOSTSAV!N14 ->  | K31: (c)
C32: Weekday Off Peak | D32: =WKS4_TTCOSTSAV!D40 -> 0.25 | E32: =WKS4_TTCOSTSAV!E40 -> 12 | F32: =WKS4_TTCOSTSAV!F40 -> 245 | G32: =$D32*WKS4_TTCOSTSAV!K$13 ->  | H32: =$D32*WKS4_TTCOSTSAV!L$13 ->  | I32: =$D32*WKS4_TTCOSTSAV!M$13 ->  | J32: =$D32*WKS4_TTCOSTSAV!N$13 ->  | K32: (d)
C33: Weekend Peak | D33: =WKS4_TTCOSTSAV!D41 -> 0.45 | E33: =WKS4_TTCOSTSAV!E41 -> 8 | F33: =WKS4_TTCOSTSAV!F41 -> 120 | G33: =$D33*WKS4_TTCOSTSAV!K$13 ->  | H33: =$D33*WKS4_TTCOSTSAV!L$13 ->  | I33: =$D33*WKS4_TTCOSTSAV!M$13 ->  | J33: =$D33*WKS4_TTCOSTSAV!N$13 ->  | K33: (e)
C34: Weekend Off Peak | D34: =WKS4_TTCOSTSAV!D42 -> 0.15 | E34: =WKS4_TTCOSTSAV!E42 -> 16 | F34: =WKS4_TTCOSTSAV!F42 -> 120 | G34: =$D34*WKS4_TTCOSTSAV!K$13 ->  | H34: =$D34*WKS4_TTCOSTSAV!L$13 ->  | I34: =$D34*WKS4_TTCOSTSAV!M$13 ->  | J34: =$D34*WKS4_TTCOSTSAV!N$13 ->  | K34: (f)
G35: AADT (veh/day)
C36: All periods | D36: N/A | E36: =WKS4_TTCOSTSAV!E43 -> 24 | F36: =WKS4_TTCOSTSAV!F43 -> 365 | G36: =WKS4_TTCOSTSAV!K15 ->  | H36: =WKS4_TTCOSTSAV!L15 ->  | I36: =WKS4_TTCOSTSAV!M15 ->  | J36: =WKS4_TTCOSTSAV!N15 ->  | K36: (g)
C37: (Q) | D37: (R) | E37: (S) | F37: (T) | G37: (U) | H37: (V) | I37: (W) | J37: (X)
A50: 6 & 7 | B50: Vehicle Speeds and VOC costs - Do-minimum
D52: # of Lanes | E52: Interval | F52: Hr | G52: t0 | H52: Speed | I52: Q | J52: JA | K52: tf (min/km) | L52: rf | M52: 0.25*rf
C53: Akcelik Link Parameters | D53: =WKS1_EVAL!D35 -> 2 | E53: 10 | F53: 60 | G53: =VLOOKUP(WKS1_EVAL!$D$36, CFG_LookupTables!$B$244:$N$249, 6, FALSE) -> 1.333333333 | H53: =VLOOKUP(WKS1_EVAL!$D$36, CFG_LookupTables!$B$244:$N$249, 5, FALSE) -> 45 | I53: =VLOOKUP(WKS1_EVAL!$D$36, CFG_LookupTables!$B$244:$N$249, 8, FALSE) -> 1700 | J53: =VLOOKUP(WKS1_EVAL!$D$36, CFG_LookupTables!$B$244:$N$249, 13, FALSE) -> 6.72 | K53: =G53*1 -> 1.333333333 | L53: =F53/K53 -> 45 | M53: =0.25*L53 -> 11.25
D55: Isolated intersection/intersection as part of route improvement | H55: Mid-block/mid-block as part of route improvement
D56: 6A Mean Speed (km/hr) | H56: 6B Mean Speed (km/hr) | L56: 7A VOC Cost (cents/km)
C57: Year | D57: Year 2 | E57: Year 8 | F57: Year 15 | G57: Year 30 | H57: Year 2 | I57: Year 8 | J57: Year 15 | K57: Year 30 | L57: Year 2 | M57: Year 8 | N57: Year 15 | O57: Year 30
C58: Time period
C59: Weekday AM Peak | G59: =F59 -> 0 | H59: =MAX(1/((tf_min*(1+rf_0.25*((((G14+G16)/2/Num_Lanes)/Q)-1+(((((G14+G16)/2/Num_Lanes)/Q)-1)^2+((8*JA*(((G14+G16)/2/Num_Lanes)/Q))/(Q*tf_min*rf)))^0.5))*60)/3600), 10) ->  | I59: =MAX(1/((tf_min*(1+rf_0.25*((((H14+H16)/2/Num_Lanes)/Q)-1+(((((H14+H16)/2/Num_Lanes)/Q)-1)^2+((8*JA*(((H14+H16)/2/Num_Lanes)/Q))/(Q*tf_min*rf)))^0.5))*60)/3600), 10) ->  | J59: =MAX(1/((tf_min*(1+rf_0.25*((((I14+I16)/2/Num_Lanes)/Q)-1+(((((I14+I16)/2/Num_Lanes)/Q)-1)^2+((8*JA*(((I14+I16)/2/Num_Lanes)/Q))/(Q*tf_min*rf)))^0.5))*60)/3600), 10) ->  | K59: =MAX(1/((tf_min*(1+rf_0.25*((((J14+J16)/2/Num_Lanes)/Q)-1+(((((J14+J16)/2/Num_Lanes)/Q)-1)^2+((8*JA*(((J14+J16)/2/Num_Lanes)/Q))/(Q*tf_min*rf)))^0.5))*60)/3600), 10) ->  | L59: =IF($D$5 = "Mid-block/mid-block as part of route improvement", VLOOKUP(ROUND(H59/5, 0)*5, CFG_LookupTables!$A$127:$D$149, $V$3, FALSE) + $X$9, VLOOKUP(ROUND(D59/5,0) * 5, CFG_LookupTables!$A$127:$D$149, $V$3, FALSE)) ->  | M59: =IF($D$5 = "Mid-block/mid-block as part of route improvement", VLOOKUP(ROUND(I59/5, 0)*5, CFG_LookupTables!$A$127:$D$149, $V$3, FALSE) + $X$9, VLOOKUP(ROUND(E59/5,0) * 5, CFG_LookupTables!$A$127:$D$149, $V$3, FALSE)) ->  | N59: =IF($D$5 = "Mid-block/mid-block as part of route improvement", VLOOKUP(ROUND(J59/5, 0)*5, CFG_LookupTables!$A$127:$D$149, $V$3, FALSE) + $X$9, VLOOKUP(ROUND(F59/5,0) * 5, CFG_LookupTables!$A$127:$D$149, $V$3, FALSE)) ->  | O59: =IF($D$5 = "Mid-block/mid-block as part of route improvement", VLOOKUP(ROUND(K59/5, 0)*5, CFG_LookupTables!$A$127:$D$149, $V$3, FALSE) + $X$9, VLOOKUP(ROUND(G59/5,0) * 5, CFG_LookupTables!$A$127:$D$149, $V$3, FALSE)) ->  | P59: (a)
C60: Weekday Interpeak | G60: =F60 -> 0 | H60: =MAX(1/((tf_min*(1+rf_0.25*(((G15/Num_Lanes)/Q)-1+((((G15/Num_Lanes)/Q)-1)^2+((8*JA*((G15/Num_Lanes)/Q))/(Q*tf_min*rf)))^0.5))*60)/3600), 10) ->  | I60: =MAX(1/((tf_min*(1+rf_0.25*(((H15/Num_Lanes)/Q)-1+((((H15/Num_Lanes)/Q)-1)^2+((8*JA*((H15/Num_Lanes)/Q))/(Q*tf_min*rf)))^0.5))*60)/3600), 10) ->  | J60: =MAX(1/((tf_min*(1+rf_0.25*(((I15/Num_Lanes)/Q)-1+((((I15/Num_Lanes)/Q)-1)^2+((8*JA*((I15/Num_Lanes)/Q))/(Q*tf_min*rf)))^0.5))*60)/3600), 10) ->  | K60: =MAX(1/((tf_min*(1+rf_0.25*(((J15/Num_Lanes)/Q)-1+((((J15/Num_Lanes)/Q)-1)^2+((8*JA*((J15/Num_Lanes)/Q))/(Q*tf_min*rf)))^0.5))*60)/3600), 10) ->  | L60: =IF($D$5 = "Mid-block/mid-block as part of route improvement", VLOOKUP(ROUND(H60/5, 0)*5, CFG_LookupTables!$A$127:$D$149, $V$3, FALSE) + $X$9, VLOOKUP(ROUND(D60/5,0) * 5, CFG_LookupTables!$A$127:$D$149, $V$3, FALSE)) ->  | M60: =IF($D$5 = "Mid-block/mid-block as part of route improvement", VLOOKUP(ROUND(I60/5, 0)*5, CFG_LookupTables!$A$127:$D$149, $V$3, FALSE) + $X$9, VLOOKUP(ROUND(E60/5,0) * 5, CFG_LookupTables!$A$127:$D$149, $V$3, FALSE)) ->  | N60: =IF($D$5 = "Mid-block/mid-block as part of route improvement", VLOOKUP(ROUND(J60/5, 0)*5, CFG_LookupTables!$A$127:$D$149, $V$3, FALSE) + $X$9, VLOOKUP(ROUND(F60/5,0) * 5, CFG_LookupTables!$A$127:$D$149, $V$3, FALSE)) ->  | O60: =IF($D$5 = "Mid-block/mid-block as part of route improvement", VLOOKUP(ROUND(K60/5, 0)*5, CFG_LookupTables!$A$127:$D$149, $V$3, FALSE) + $X$9, VLOOKUP(ROUND(G60/5,0) * 5, CFG_LookupTables!$A$127:$D$149, $V$3, FALSE)) ->  | P60: (b)
C61: Weekday PM Peak | G61: 0 | H61: =MAX(1/((tf_min*(1+rf_0.25*((((G14+G16)/2/Num_Lanes)/Q)-1+(((((G14+G16)/2/Num_Lanes)/Q)-1)^2+((8*JA*(((G14+G16)/2/Num_Lanes)/Q))/(Q*tf_min*rf)))^0.5))*60)/3600), 10) ->  | I61: =MAX(1/((tf_min*(1+rf_0.25*((((H14+H16)/2/Num_Lanes)/Q)-1+(((((H14+H16)/2/Num_Lanes)/Q)-1)^2+((8*JA*(((H14+H16)/2/Num_Lanes)/Q))/(Q*tf_min*rf)))^0.5))*60)/3600), 10) ->  | J61: =MAX(1/((tf_min*(1+rf_0.25*((((I14+I16)/2/Num_Lanes)/Q)-1+(((((I14+I16)/2/Num_Lanes)/Q)-1)^2+((8*JA*(((I14+I16)/2/Num_Lanes)/Q))/(Q*tf_min*rf)))^0.5))*60)/3600), 10) ->  | K61: =MAX(1/((tf_min*(1+rf_0.25*((((J14+J16)/2/Num_Lanes)/Q)-1+(((((J14+J16)/2/Num_Lanes)/Q)-1)^2+((8*JA*(((J14+J16)/2/Num_Lanes)/Q))/(Q*tf_min*rf)))^0.5))*60)/3600), 10) ->  | L61: =IF($D$5 = "Mid-block/mid-block as part of route improvement", VLOOKUP(ROUND(H61/5, 0)*5, CFG_LookupTables!$A$127:$D$149, $V$3, FALSE) + $X$9, VLOOKUP(ROUND(D61/5,0) * 5, CFG_LookupTables!$A$127:$D$149, $V$3, FALSE)) ->  | M61: =IF($D$5 = "Mid-block/mid-block as part of route improvement", VLOOKUP(ROUND(I61/5, 0)*5, CFG_LookupTables!$A$127:$D$149, $V$3, FALSE) + $X$9, VLOOKUP(ROUND(E61/5,0) * 5, CFG_LookupTables!$A$127:$D$149, $V$3, FALSE)) ->  | N61: =IF($D$5 = "Mid-block/mid-block as part of route improvement", VLOOKUP(ROUND(J61/5, 0)*5, CFG_LookupTables!$A$127:$D$149, $V$3, FALSE) + $X$9, VLOOKUP(ROUND(F61/5,0) * 5, CFG_LookupTables!$A$127:$D$149, $V$3, FALSE)) ->  | O61: =IF($D$5 = "Mid-block/mid-block as part of route improvement", VLOOKUP(ROUND(K61/5, 0)*5, CFG_LookupTables!$A$127:$D$149, $V$3, FALSE) + $X$9, VLOOKUP(ROUND(G61/5,0) * 5, CFG_LookupTables!$A$127:$D$149, $V$3, FALSE)) ->  | P61: (c)
C62: Weekday Off Peak | D62: =D60 -> 0 | E62: 0 | F62: 0 | G62: 0 | H62: =MAX(1/((tf_min*(1+rf_0.25*(((G17/Num_Lanes)/Q)-1+((((G17/Num_Lanes)/Q)-1)^2+((8*JA*((G17/Num_Lanes)/Q))/(Q*tf_min*rf)))^0.5))*60)/3600), 10) ->  | L62: =IF($D$5 = "Mid-block/mid-block as part of route improvement", VLOOKUP(ROUND(H62/5, 0)*5, CFG_LookupTables!$A$127:$D$149, $V$3, FALSE) + $X$9, VLOOKUP(ROUND(D62/5,0) * 5, CFG_LookupTables!$A$127:$D$149, $V$3, FALSE)) ->  | M62: =IF($D$5 = "Mid-block/mid-block as part of route improvement", VLOOKUP(ROUND(I62/5, 0)*5, CFG_LookupTables!$A$127:$D$149, $V$3, FALSE) + $X$9, VLOOKUP(ROUND(E62/5,0) * 5, CFG_LookupTables!$A$127:$D$149, $V$3, FALSE)) ->  | N62: =IF($D$5 = "Mid-block/mid-block as part of route improvement", VLOOKUP(ROUND(J62/5, 0)*5, CFG_LookupTables!$A$127:$D$149, $V$3, FALSE) + $X$9, VLOOKUP(ROUND(F62/5,0) * 5, CFG_LookupTables!$A$127:$D$149, $V$3, FALSE)) ->  | O62: =IF($D$5 = "Mid-block/mid-block as part of route improvement", VLOOKUP(ROUND(K62/5, 0)*5, CFG_LookupTables!$A$127:$D$149, $V$3, FALSE) + $X$9, VLOOKUP(ROUND(G62/5,0) * 5, CFG_LookupTables!$A$127:$D$149, $V$3, FALSE)) ->  | P62: (d)
C63: Weekend Peak | D63: =D60 -> 0 | E63: 0 | F63: 0 | G63: 0 | L63: =IF($D$5 = "Mid-block/mid-block as part of route improvement", VLOOKUP(ROUND(H63/5, 0)*5, CFG_LookupTables!$A$127:$D$149, $V$3, FALSE) + $X$9, VLOOKUP(ROUND(D63/5,0) * 5, CFG_LookupTables!$A$127:$D$149, $V$3, FALSE)) ->  | M63: =IF($D$5 = "Mid-block/mid-block as part of route improvement", VLOOKUP(ROUND(I63/5, 0)*5, CFG_LookupTables!$A$127:$D$149, $V$3, FALSE) + $X$9, VLOOKUP(ROUND(E63/5,0) * 5, CFG_LookupTables!$A$127:$D$149, $V$3, FALSE)) ->  | N63: =IF($D$5 = "Mid-block/mid-block as part of route improvement", VLOOKUP(ROUND(J63/5, 0)*5, CFG_LookupTables!$A$127:$D$149, $V$3, FALSE) + $X$9, VLOOKUP(ROUND(F63/5,0) * 5, CFG_LookupTables!$A$127:$D$149, $V$3, FALSE)) ->  | O63: =IF($D$5 = "Mid-block/mid-block as part of route improvement", VLOOKUP(ROUND(K63/5, 0)*5, CFG_LookupTables!$A$127:$D$149, $V$3, FALSE) + $X$9, VLOOKUP(ROUND(G63/5,0) * 5, CFG_LookupTables!$A$127:$D$149, $V$3, FALSE)) ->  | P63: (e)
C64: Weekend Off Peak | D64: =D60 -> 0 | E64: 0 | F64: 0 | G64: 0 | L64: =IF($D$5 = "Mid-block/mid-block as part of route improvement", VLOOKUP(ROUND(H64/5, 0)*5, CFG_LookupTables!$A$127:$D$149, $V$3, FALSE) + $X$9, VLOOKUP(ROUND(D64/5,0) * 5, CFG_LookupTables!$A$127:$D$149, $V$3, FALSE)) ->  | M64: =IF($D$5 = "Mid-block/mid-block as part of route improvement", VLOOKUP(ROUND(I64/5, 0)*5, CFG_LookupTables!$A$127:$D$149, $V$3, FALSE) + $X$9, VLOOKUP(ROUND(E64/5,0) * 5, CFG_LookupTables!$A$127:$D$149, $V$3, FALSE)) ->  | N64: =IF($D$5 = "Mid-block/mid-block as part of route improvement", VLOOKUP(ROUND(J64/5, 0)*5, CFG_LookupTables!$A$127:$D$149, $V$3, FALSE) + $X$9, VLOOKUP(ROUND(F64/5,0) * 5, CFG_LookupTables!$A$127:$D$149, $V$3, FALSE)) ->  | O64: =IF($D$5 = "Mid-block/mid-block as part of route improvement", VLOOKUP(ROUND(K64/5, 0)*5, CFG_LookupTables!$A$127:$D$149, $V$3, FALSE) + $X$9, VLOOKUP(ROUND(G64/5,0) * 5, CFG_LookupTables!$A$127:$D$149, $V$3, FALSE)) ->  | P64: (f)
C65: All periods | D65: 47 | E65: 47 | F65: 47 | G65: 47 | H65: =MAX(1/((tf_min*(1+rf_0.25*(((G21/24/Num_Lanes)/Q)-1+((((G21/24/Num_Lanes)/Q)-1)^2+((8*JA*((G21/24/Num_Lanes)/Q))/(Q*tf_min*rf)))^0.5))*60)/3600), 10) ->  | I65: =MAX(1/((tf_min*(1+rf_0.25*(((H21/24/Num_Lanes)/Q)-1+((((H21/24/Num_Lanes)/Q)-1)^2+((8*JA*((H21/24/Num_Lanes)/Q))/(Q*tf_min*rf)))^0.5))*60)/3600), 10) ->  | J65: =MAX(1/((tf_min*(1+rf_0.25*(((I21/24/Num_Lanes)/Q)-1+((((I21/24/Num_Lanes)/Q)-1)^2+((8*JA*((I21/24/Num_Lanes)/Q))/(Q*tf_min*rf)))^0.5))*60)/3600), 10) ->  | K65: =MAX(1/((tf_min*(1+rf_0.25*(((J21/24/Num_Lanes)/Q)-1+((((J21/24/Num_Lanes)/Q)-1)^2+((8*JA*((J21/24/Num_Lanes)/Q))/(Q*tf_min*rf)))^0.5))*60)/3600), 10) ->  | L65: =IF($D$5 = "Mid-block/mid-block as part of route improvement", VLOOKUP(ROUND(H65/5,0)*5, CFG_LookupTables!$A$127:$D$149, $V$3, FALSE) + $X$9, VLOOKUP(ROUND(D65/5,0)*5, CFG_LookupTables!$A$127:$D$149, $V$3, FALSE)) -> 29.2 | M65: =IF($D$5 = "Mid-block/mid-block as part of route improvement", VLOOKUP(ROUND(I65/5,0)*5, CFG_LookupTables!$A$127:$D$149, $V$3, FALSE) + $X$9, VLOOKUP(ROUND(E65/5,0)*5, CFG_LookupTables!$A$127:$D$149, $V$3, FALSE)) -> 29.2 | N65: =IF($D$5 = "Mid-block/mid-block as part of route improvement", VLOOKUP(ROUND(J65/5,0)*5, CFG_LookupTables!$A$127:$D$149, $V$3, FALSE) + $X$9, VLOOKUP(ROUND(F65/5,0)*5, CFG_LookupTables!$A$127:$D$149, $V$3, FALSE)) -> 29.2 | O65: =IF($D$5 = "Mid-block/mid-block as part of route improvement", VLOOKUP(ROUND(K65/5,0)*5, CFG_LookupTables!$A$127:$D$149, $V$3, FALSE) + $X$9, VLOOKUP(ROUND(G65/5,0)*5, CFG_LookupTables!$A$127:$D$149, $V$3, FALSE)) -> 29.2 | P65: (g)
D67: Isolated intersection/intersection as part of route improvement | H67: Mid-block/mid-block as part of route improvement
D68: 6C Total Travel Distance (veh.km/hr) | H68: 6D Total Travel Distance (veh.km/hr) | L68: 7B Annual VOC Cost ($/year)
C69: Year | D69: Year 2 | E69: Year 8 | F69: Year 15 | G69: Year 30 | H69: Year 2 | I69: Year 8 | J69: Year 15 | K69: Year 30 | L69: Year 2 | M69: Year 8 | N69: Year 15 | O69: Year 30
C70: Time period
C71: Weekday AM Peak | G71: =F71 -> 0 | H71: =G14*WKS1_EVAL!$D$34 ->  | I71: =H14*WKS1_EVAL!$D$34 ->  | J71: =I14*WKS1_EVAL!$D$34 ->  | K71: =J14*WKS1_EVAL!$D$34 ->  | L71: =$E29*$F29*(L59/100)*IF($D$5 = "Isolated intersection/intersection as part of route improvement", D71,H71) ->  | P71: (a)
C72: Weekday Interpeak | G72: =F72 -> 0 | H72: =G15*WKS1_EVAL!$D$34 ->  | I72: =H15*WKS1_EVAL!$D$34 ->  | J72: =I15*WKS1_EVAL!$D$34 ->  | K72: =J15*WKS1_EVAL!$D$34 ->  | P72: (b)
C73: Weekday PM Peak | G73: 0 | H73: =G16*WKS1_EVAL!$D$34 ->  | I73: =H16*WKS1_EVAL!$D$34 ->  | J73: =I16*WKS1_EVAL!$D$34 ->  | K73: =J16*WKS1_EVAL!$D$34 ->  | P73: (c)
C74: Weekday Off Peak | D74: =$D32*D$72 -> 0 | E74: 0 | F74: 0 | G74: 0 | H74: =G17*WKS1_EVAL!$D$34 ->  | I74: =H17*WKS1_EVAL!$D$34 ->  | J74: =I17*WKS1_EVAL!$D$34 ->  | K74: =J17*WKS1_EVAL!$D$34 ->  | P74: (d)
C75: Weekend Peak | D75: 0 | E75: 0 | F75: 0 | G75: 0 | H75: =G18*WKS1_EVAL!$D$34 ->  | I75: =H18*WKS1_EVAL!$D$34 ->  | J75: =I18*WKS1_EVAL!$D$34 ->  | K75: =J18*WKS1_EVAL!$D$34 ->  | P75: (e)
C76: Weekend Off Peak | D76: 0 | E76: 0 | F76: 0 | G76: 0 | H76: =G19*WKS1_EVAL!$D$34 ->  | I76: =H19*WKS1_EVAL!$D$34 ->  | J76: =I19*WKS1_EVAL!$D$34 ->  | K76: =J19*WKS1_EVAL!$D$34 ->  | P76: (f)
C77: All periods | D77: 2 | E77: 2 | F77: 2 | G77: 2 | H77: =(G21/24)*WKS1_EVAL!$D$34 ->  | I77: =(H21/24)*WKS1_EVAL!$D$34 ->  | J77: =(I21/24)*WKS1_EVAL!$D$34 ->  | K77: =(J21/24)*WKS1_EVAL!$D$34 ->  | L77: =$E21*$F21*(L65/100)*IF($D$5 = "Isolated intersection/intersection as part of route improvement", D77,H77) -> 5115.84 | M77: =$E21*$F21*(M65/100)*IF($D$5 = "Isolated intersection/intersection as part of route improvement", E77,I77) -> 5115.84 | N77: =$E21*$F21*(N65/100)*IF($D$5 = "Isolated intersection/intersection as part of route improvement", F77,J77) -> 5115.84 | O77: =$E21*$F21*(O65/100)*IF($D$5 = "Isolated intersection/intersection as part of route improvement", G77,K77) -> 5115.84 | P77: (g)
L78: =+L71+L72+L73+L74+L75+L76 ->  | M78: =+M71+M72+M73+M74+M75+M76 ->  | P78: Total for All Day periods
L79: =+L77 -> 5115.84 | M79: =+M77 -> 5115.84 | N79: 5115.84 | O79: 5115.84 | P79: Total for day long
A81: 8 & 9 | B81: Vehicle Speeds and VOC costs - Option
D83: # of Lanes | E83: Interval | F83: Hr | G83: t0 | H83: Speed | I83: Q | J83: JA | K83: tf (min/km) | L83: rf | M83: 0.25*rf
C84: Akcelik Link Parameters | D84: =WKS1_EVAL!E35 -> 4 | E84: 10 | F84: 60 | G84: =VLOOKUP(WKS1_EVAL!$E$36, CFG_LookupTables!$B$244:$N$249, 6, FALSE) -> 1.333333333 | H84: =VLOOKUP(WKS1_EVAL!$E$36, CFG_LookupTables!$B$244:$N$249, 5, FALSE) -> 45 | I84: =VLOOKUP(WKS1_EVAL!$E$36, CFG_LookupTables!$B$244:$N$249, 8, FALSE) -> 1700 | J84: =VLOOKUP(WKS1_EVAL!$E$36, CFG_LookupTables!$B$244:$N$249, 13, FALSE) -> 6.72 | K84: =G84*1 -> 1.333333333 | L84: =F84/K84 -> 45 | M84: =0.25*L84 -> 11.25
D86: Isolated intersection/intersection as part of route improvement | H86: Mid-block/mid-block as part of route improvement
D87: 8A Mean Speed (km/hr) | H87: 8B Mean Speed (km/hr) | L87: 9A VOC Cost (cents/km)
C88: Year | D88: Year 2 | E88: Year 8 | F88: Year 15 | G88: Year 30 | H88: Year 2 | I88: Year 8 | J88: Year 15 | K88: Year 30 | L88: Year 2 | M88: Year 8 | N88: Year 15 | O88: Year 30
C89: Time period
C90: Weekday AM Peak | G90: =F90 -> 0 | H90: =MAX(1/((tf_min_Option*(1+rf_0.25_Option*((((G29+G31)/2/Num_Lanes_Option)/Q_Option)-1+(((((G29+G31)/2/Num_Lanes_Option)/Q_Option)-1)^2+((8*JA_Option*(((G29+G31)/2/Num_Lanes_Option)/Q_Option))/(Q_Option*tf_min_Option*rf_Option)))^0.5))*60)/3600), 10) ->  | I90: =MAX(1/((tf_min_Option*(1+rf_0.25_Option*((((H29+H31)/2/Num_Lanes_Option)/Q_Option)-1+(((((H29+H31)/2/Num_Lanes_Option)/Q_Option)-1)^2+((8*JA_Option*(((H29+H31)/2/Num_Lanes_Option)/Q_Option))/(Q_Option*tf_min_Option*rf_Option)))^0.5))*60)/3600), 10) ->  | J90: =MAX(1/((tf_min_Option*(1+rf_0.25_Option*((((I29+I31)/2/Num_Lanes_Option)/Q_Option)-1+(((((I29+I31)/2/Num_Lanes_Option)/Q_Option)-1)^2+((8*JA_Option*(((I29+I31)/2/Num_Lanes_Option)/Q_Option))/(Q_Option*tf_min_Option*rf_Option)))^0.5))*60)/3600), 10) ->  | K90: =MAX(1/((tf_min_Option*(1+rf_0.25_Option*((((J29+J31)/2/Num_Lanes_Option)/Q_Option)-1+(((((J29+J31)/2/Num_Lanes_Option)/Q_Option)-1)^2+((8*JA_Option*(((J29+J31)/2/Num_Lanes_Option)/Q_Option))/(Q_Option*tf_min_Option*rf_Option)))^0.5))*60)/3600), 10) ->  | L90: =IF($D$5 = "Mid-block/mid-block as part of route improvement", VLOOKUP(ROUND(H90/5,0)*5, CFG_LookupTables!$A$127:$D$149, $V$3, FALSE) + $Y$9, VLOOKUP(ROUND(D90/5,0) *5, CFG_LookupTables!$A$127:$D$149, $V$3, FALSE)) ->  | M90: =IF($D$5 = "Mid-block/mid-block as part of route improvement", VLOOKUP(ROUND(I90/5,0)*5, CFG_LookupTables!$A$127:$D$149, $V$3, FALSE) + $Y$9, VLOOKUP(ROUND(E90/5,0) *5, CFG_LookupTables!$A$127:$D$149, $V$3, FALSE)) ->  | N90: =IF($D$5 = "Mid-block/mid-block as part of route improvement", VLOOKUP(ROUND(J90/5,0)*5, CFG_LookupTables!$A$127:$D$149, $V$3, FALSE) + $Y$9, VLOOKUP(ROUND(F90/5,0) *5, CFG_LookupTables!$A$127:$D$149, $V$3, FALSE)) ->  | O90: =IF($D$5 = "Mid-block/mid-block as part of route improvement", VLOOKUP(ROUND(K90/5,0)*5, CFG_LookupTables!$A$127:$D$149, $V$3, FALSE) + $Y$9, VLOOKUP(ROUND(G90/5,0) *5, CFG_LookupTables!$A$127:$D$149, $V$3, FALSE)) ->  | P90: (a)
C91: Weekday Interpeak | G91: =F91 -> 0 | H91: =MAX(1/((tf_min_Option*(1+rf_0.25_Option*(((G30/Num_Lanes_Option)/Q_Option)-1+((((G30/Num_Lanes_Option)/Q_Option)-1)^2+((8*JA_Option*((G30/Num_Lanes_Option)/Q_Option))/(Q_Option*tf_min_Option*rf_Option)))^0.5))*60)/3600), 10) ->  | I91: =MAX(1/((tf_min_Option*(1+rf_0.25_Option*(((H30/Num_Lanes_Option)/Q_Option)-1+((((H30/Num_Lanes_Option)/Q_Option)-1)^2+((8*JA_Option*((H30/Num_Lanes_Option)/Q_Option))/(Q_Option*tf_min_Option*rf_Option)))^0.5))*60)/3600), 10) ->  | J91: =MAX(1/((tf_min_Option*(1+rf_0.25_Option*(((I30/Num_Lanes_Option)/Q_Option)-1+((((I30/Num_Lanes_Option)/Q_Option)-1)^2+((8*JA_Option*((I30/Num_Lanes_Option)/Q_Option))/(Q_Option*tf_min_Option*rf_Option)))^0.5))*60)/3600), 10) ->  | K91: =MAX(1/((tf_min_Option*(1+rf_0.25_Option*(((J30/Num_Lanes_Option)/Q_Option)-1+((((J30/Num_Lanes_Option)/Q_Option)-1)^2+((8*JA_Option*((J30/Num_Lanes_Option)/Q_Option))/(Q_Option*tf_min_Option*rf_Option)))^0.5))*60)/3600), 10) ->  | L91: =IF($D$5 = "Mid-block/mid-block as part of route improvement", VLOOKUP(ROUND(H91/5,0)*5, CFG_LookupTables!$A$127:$D$149, $V$3, FALSE) + $Y$9, VLOOKUP(ROUND(D91/5,0) *5, CFG_LookupTables!$A$127:$D$149, $V$3, FALSE)) ->  | M91: =IF($D$5 = "Mid-block/mid-block as part of route improvement", VLOOKUP(ROUND(I91/5,0)*5, CFG_LookupTables!$A$127:$D$149, $V$3, FALSE) + $Y$9, VLOOKUP(ROUND(E91/5,0) *5, CFG_LookupTables!$A$127:$D$149, $V$3, FALSE)) ->  | N91: =IF($D$5 = "Mid-block/mid-block as part of route improvement", VLOOKUP(ROUND(J91/5,0)*5, CFG_LookupTables!$A$127:$D$149, $V$3, FALSE) + $Y$9, VLOOKUP(ROUND(F91/5,0) *5, CFG_LookupTables!$A$127:$D$149, $V$3, FALSE)) ->  | O91: =IF($D$5 = "Mid-block/mid-block as part of route improvement", VLOOKUP(ROUND(K91/5,0)*5, CFG_LookupTables!$A$127:$D$149, $V$3, FALSE) + $Y$9, VLOOKUP(ROUND(G91/5,0) *5, CFG_LookupTables!$A$127:$D$149, $V$3, FALSE)) ->  | P91: (b)
C92: Weekday PM Peak | G92: 0 | H92: =MAX(1/((tf_min_Option*(1+rf_0.25_Option*((((G29+G31)/2/Num_Lanes_Option)/Q_Option)-1+(((((G29+G31)/2/Num_Lanes_Option)/Q_Option)-1)^2+((8*JA_Option*(((G29+G31)/2/Num_Lanes_Option)/Q_Option))/(Q_Option*tf_min_Option*rf_Option)))^0.5))*60)/3600), 10) ->  | I92: =MAX(1/((tf_min_Option*(1+rf_0.25_Option*((((H29+H31)/2/Num_Lanes_Option)/Q_Option)-1+(((((H29+H31)/2/Num_Lanes_Option)/Q_Option)-1)^2+((8*JA_Option*(((H29+H31)/2/Num_Lanes_Option)/Q_Option))/(Q_Option*tf_min_Option*rf_Option)))^0.5))*60)/3600), 10) ->  | J92: =MAX(1/((tf_min_Option*(1+rf_0.25_Option*((((I29+I31)/2/Num_Lanes_Option)/Q_Option)-1+(((((I29+I31)/2/Num_Lanes_Option)/Q_Option)-1)^2+((8*JA_Option*(((I29+I31)/2/Num_Lanes_Option)/Q_Option))/(Q_Option*tf_min_Option*rf_Option)))^0.5))*60)/3600), 10) ->  | K92: =MAX(1/((tf_min_Option*(1+rf_0.25_Option*((((J29+J31)/2/Num_Lanes_Option)/Q_Option)-1+(((((J29+J31)/2/Num_Lanes_Option)/Q_Option)-1)^2+((8*JA_Option*(((J29+J31)/2/Num_Lanes_Option)/Q_Option))/(Q_Option*tf_min_Option*rf_Option)))^0.5))*60)/3600), 10) ->  | L92: =IF($D$5 = "Mid-block/mid-block as part of route improvement", VLOOKUP(ROUND(H92/5,0)*5, CFG_LookupTables!$A$127:$D$149, $V$3, FALSE) + $Y$9, VLOOKUP(ROUND(D92/5,0) *5, CFG_LookupTables!$A$127:$D$149, $V$3, FALSE)) ->  | M92: =IF($D$5 = "Mid-block/mid-block as part of route improvement", VLOOKUP(ROUND(I92/5,0)*5, CFG_LookupTables!$A$127:$D$149, $V$3, FALSE) + $Y$9, VLOOKUP(ROUND(E92/5,0) *5, CFG_LookupTables!$A$127:$D$149, $V$3, FALSE)) ->  | N92: =IF($D$5 = "Mid-block/mid-block as part of route improvement", VLOOKUP(ROUND(J92/5,0)*5, CFG_LookupTables!$A$127:$D$149, $V$3, FALSE) + $Y$9, VLOOKUP(ROUND(F92/5,0) *5, CFG_LookupTables!$A$127:$D$149, $V$3, FALSE)) ->  | O92: =IF($D$5 = "Mid-block/mid-block as part of route improvement", VLOOKUP(ROUND(K92/5,0)*5, CFG_LookupTables!$A$127:$D$149, $V$3, FALSE) + $Y$9, VLOOKUP(ROUND(G92/5,0) *5, CFG_LookupTables!$A$127:$D$149, $V$3, FALSE)) ->  | P92: (c)
C93: Weekday Off Peak | D93: =D$91 -> 0 | E93: 0 | F93: 0 | G93: 0 | H93: =MAX(1/((tf_min_Option*(1+rf_0.25_Option*(((G32/Num_Lanes_Option)/Q_Option)-1+((((G32/Num_Lanes_Option)/Q_Option)-1)^2+((8*JA_Option*((G32/Num_Lanes_Option)/Q_Option))/(Q_Option*tf_min_Option*rf_Option)))^0.5))*60)/3600), 10) ->  | L93: =IF($D$5 = "Mid-block/mid-block as part of route improvement", VLOOKUP(ROUND(H93/5,0)*5, CFG_LookupTables!$A$127:$D$149, $V$3, FALSE) + $Y$9, VLOOKUP(ROUND(D93/5,0) *5, CFG_LookupTables!$A$127:$D$149, $V$3, FALSE)) ->  | M93: =IF($D$5 = "Mid-block/mid-block as part of route improvement", VLOOKUP(ROUND(I93/5,0)*5, CFG_LookupTables!$A$127:$D$149, $V$3, FALSE) + $Y$9, VLOOKUP(ROUND(E93/5,0) *5, CFG_LookupTables!$A$127:$D$149, $V$3, FALSE)) ->  | N93: =IF($D$5 = "Mid-block/mid-block as part of route improvement", VLOOKUP(ROUND(J93/5,0)*5, CFG_LookupTables!$A$127:$D$149, $V$3, FALSE) + $Y$9, VLOOKUP(ROUND(F93/5,0) *5, CFG_LookupTables!$A$127:$D$149, $V$3, FALSE)) ->  | O93: =IF($D$5 = "Mid-block/mid-block as part of route improvement", VLOOKUP(ROUND(K93/5,0)*5, CFG_LookupTables!$A$127:$D$149, $V$3, FALSE) + $Y$9, VLOOKUP(ROUND(G93/5,0) *5, CFG_LookupTables!$A$127:$D$149, $V$3, FALSE)) ->  | P93: (d)
C94: Weekend Peak | D94: 0 | E94: 0 | F94: 0 | G94: 0 | L94: =IF($D$5 = "Mid-block/mid-block as part of route improvement", VLOOKUP(ROUND(H94/5,0)*5, CFG_LookupTables!$A$127:$D$149, $V$3, FALSE) + $Y$9, VLOOKUP(ROUND(D94/5,0) *5, CFG_LookupTables!$A$127:$D$149, $V$3, FALSE)) ->  | M94: =IF($D$5 = "Mid-block/mid-block as part of route improvement", VLOOKUP(ROUND(I94/5,0)*5, CFG_LookupTables!$A$127:$D$149, $V$3, FALSE) + $Y$9, VLOOKUP(ROUND(E94/5,0) *5, CFG_LookupTables!$A$127:$D$149, $V$3, FALSE)) ->  | N94: =IF($D$5 = "Mid-block/mid-block as part of route improvement", VLOOKUP(ROUND(J94/5,0)*5, CFG_LookupTables!$A$127:$D$149, $V$3, FALSE) + $Y$9, VLOOKUP(ROUND(F94/5,0) *5, CFG_LookupTables!$A$127:$D$149, $V$3, FALSE)) ->  | O94: =IF($D$5 = "Mid-block/mid-block as part of route improvement", VLOOKUP(ROUND(K94/5,0)*5, CFG_LookupTables!$A$127:$D$149, $V$3, FALSE) + $Y$9, VLOOKUP(ROUND(G94/5,0) *5, CFG_LookupTables!$A$127:$D$149, $V$3, FALSE)) ->  | P94: (e)
C95: Weekend Off Peak | D95: 0 | E95: 0 | F95: 0 | G95: 0 | L95: =IF($D$5 = "Mid-block/mid-block as part of route improvement", VLOOKUP(ROUND(H95/5,0)*5, CFG_LookupTables!$A$127:$D$149, $V$3, FALSE) + $Y$9, VLOOKUP(ROUND(D95/5,0) *5, CFG_LookupTables!$A$127:$D$149, $V$3, FALSE)) ->  | M95: =IF($D$5 = "Mid-block/mid-block as part of route improvement", VLOOKUP(ROUND(I95/5,0)*5, CFG_LookupTables!$A$127:$D$149, $V$3, FALSE) + $Y$9, VLOOKUP(ROUND(E95/5,0) *5, CFG_LookupTables!$A$127:$D$149, $V$3, FALSE)) ->  | N95: =IF($D$5 = "Mid-block/mid-block as part of route improvement", VLOOKUP(ROUND(J95/5,0)*5, CFG_LookupTables!$A$127:$D$149, $V$3, FALSE) + $Y$9, VLOOKUP(ROUND(F95/5,0) *5, CFG_LookupTables!$A$127:$D$149, $V$3, FALSE)) ->  | O95: =IF($D$5 = "Mid-block/mid-block as part of route improvement", VLOOKUP(ROUND(K95/5,0)*5, CFG_LookupTables!$A$127:$D$149, $V$3, FALSE) + $Y$9, VLOOKUP(ROUND(G95/5,0) *5, CFG_LookupTables!$A$127:$D$149, $V$3, FALSE)) ->  | P95: (f)
C96: All periods | D96: 35 | E96: 35 | F96: 35 | G96: 35 | H96: =MAX(1/((tf_min_Option*(1+rf_0.25_Option*(((G36/24/Num_Lanes_Option)/Q_Option)-1+((((G36/24/Num_Lanes_Option)/Q_Option)-1)^2+((8*JA_Option*((G36/24/Num_Lanes_Option)/Q_Option))/(Q_Option*tf_min_Option*rf_Option)))^0.5))*60)/3600), 10) ->  | I96: =MAX(1/((tf_min_Option*(1+rf_0.25_Option*(((H36/24/Num_Lanes_Option)/Q_Option)-1+((((H36/24/Num_Lanes_Option)/Q_Option)-1)^2+((8*JA_Option*((H36/24/Num_Lanes_Option)/Q_Option))/(Q_Option*tf_min_Option*rf_Option)))^0.5))*60)/3600), 10) ->  | J96: =MAX(1/((tf_min_Option*(1+rf_0.25_Option*(((I36/24/Num_Lanes_Option)/Q_Option)-1+((((I36/24/Num_Lanes_Option)/Q_Option)-1)^2+((8*JA_Option*((I36/24/Num_Lanes_Option)/Q_Option))/(Q_Option*tf_min_Option*rf_Option)))^0.5))*60)/3600), 10) ->  | K96: =MAX(1/((tf_min_Option*(1+rf_0.25_Option*(((J36/24/Num_Lanes_Option)/Q_Option)-1+((((J36/24/Num_Lanes_Option)/Q_Option)-1)^2+((8*JA_Option*((J36/24/Num_Lanes_Option)/Q_Option))/(Q_Option*tf_min_Option*rf_Option)))^0.5))*60)/3600), 10) ->  | L96: =IF($D$5 = "Mid-block/mid-block as part of route improvement", VLOOKUP(ROUND(H96/5,0)*5, CFG_LookupTables!$A$127:$D$149, $V$3, FALSE) + $Y$9, VLOOKUP(ROUND(D96/5, 0) *5, CFG_LookupTables!$A$127:$D$149, $V$3, FALSE)) -> 31.2 | M96: =IF($D$5 = "Mid-block/mid-block as part of route improvement", VLOOKUP(ROUND(I96/5,0)*5, CFG_LookupTables!$A$127:$D$149, $V$3, FALSE) + $Y$9, VLOOKUP(ROUND(E96/5, 0) *5, CFG_LookupTables!$A$127:$D$149, $V$3, FALSE)) -> 31.2 | N96: =IF($D$5 = "Mid-block/mid-block as part of route improvement", VLOOKUP(ROUND(J96/5,0)*5, CFG_LookupTables!$A$127:$D$149, $V$3, FALSE) + $Y$9, VLOOKUP(ROUND(F96/5, 0) *5, CFG_LookupTables!$A$127:$D$149, $V$3, FALSE)) -> 31.2 | O96: =IF($D$5 = "Mid-block/mid-block as part of route improvement", VLOOKUP(ROUND(K96/5,0)*5, CFG_LookupTables!$A$127:$D$149, $V$3, FALSE) + $Y$9, VLOOKUP(ROUND(G96/5, 0) *5, CFG_LookupTables!$A$127:$D$149, $V$3, FALSE)) -> 31.2 | P96: (g)
D98: Isolated intersection/intersection as part of route improvement | H98: Mid-block/mid-block as part of route improvement
D99: 8C Total Travel Distance (veh.km/hr) | H99: 8D Total Travel Distance (veh.km/hr) | L99: 9B Annual VOC Cost ($/year)
C100: Year | D100: Year 2 | E100: Year 8 | F100: Year 15 | G100: Year 30 | H100: Year 2 | I100: Year 8 | J100: Year 15 | K100: Year 30 | L100: Year 2 | M100: Year 8 | N100: Year 15 | O100: Year 30
C101: Time period
C102: Weekday AM Peak | G102: =F102 -> 0 | H102: =G29*WKS1_EVAL!$E$34 ->  | I102: =H29*WKS1_EVAL!$E$34 ->  | J102: =I29*WKS1_EVAL!$E$34 ->  | K102: =J29*WKS1_EVAL!$E$34 ->  | L102: =$E29*$F29*(L90/100)*IF($D$5 = "Isolated intersection/intersection as part of route improvement", D102,H102) ->  | P102: (a)
C103: Weekday Interpeak | G103: =F103 -> 0 | H103: =G30*WKS1_EVAL!$E$34 ->  | I103: =H30*WKS1_EVAL!$E$34 ->  | J103: =I30*WKS1_EVAL!$E$34 ->  | K103: =J30*WKS1_EVAL!$E$34 ->  | P103: (b)
C104: Weekday PM Peak | G104: 0 | H104: =G31*WKS1_EVAL!$E$34 ->  | I104: =H31*WKS1_EVAL!$E$34 ->  | J104: =I31*WKS1_EVAL!$E$34 ->  | K104: =J31*WKS1_EVAL!$E$34 ->  | P104: (c)
C105: Weekday Off Peak | D105: =$D32*D$103 -> 0 | E105: 0 | F105: 0 | G105: 0 | H105: =G32*WKS1_EVAL!$E$34 ->  | I105: =H32*WKS1_EVAL!$E$34 ->  | J105: =I32*WKS1_EVAL!$E$34 ->  | K105: =J32*WKS1_EVAL!$E$34 ->  | P105: (d)
C106: Weekend Peak | D106: 0 | E106: 0 | F106: 0 | G106: 0 | H106: =G33*WKS1_EVAL!$E$34 ->  | I106: =H33*WKS1_EVAL!$E$34 ->  | J106: =I33*WKS1_EVAL!$E$34 ->  | K106: =J33*WKS1_EVAL!$E$34 ->  | P106: (e)
C107: Weekend Off Peak | D107: 0 | E107: 0 | F107: 0 | G107: 0 | H107: =G34*WKS1_EVAL!$E$34 ->  | I107: =H34*WKS1_EVAL!$E$34 ->  | J107: =I34*WKS1_EVAL!$E$34 ->  | K107: =J34*WKS1_EVAL!$E$34 ->  | P107: (f)
C108: All periods | D108: 5 | E108: 5 | F108: 5 | G108: 5 | H108: =(G36/24)*WKS1_EVAL!$E$34 ->  | I108: =(H36/24)*WKS1_EVAL!$E$34 ->  | J108: =(I36/24)*WKS1_EVAL!$E$34 ->  | K108: =(J36/24)*WKS1_EVAL!$E$34 ->  | L108: =$E36*$F36*(L96/100)*IF($D$5 = "Isolated intersection/intersection as part of route improvement", D108,H108) -> 13665.6 | M108: =$E36*$F36*(M96/100)*IF($D$5 = "Isolated intersection/intersection as part of route improvement", E108,I108) -> 13665.6 | N108: =$E36*$F36*(N96/100)*IF($D$5 = "Isolated intersection/intersection as part of route improvement", F108,J108) -> 13665.6 | O108: =$E36*$F36*(O96/100)*IF($D$5 = "Isolated intersection/intersection as part of route improvement", G108,K108) -> 13665.6 | P108: (g)
L109: =+L102+L103+L104+L105+L106+L107 ->  | M109: =+M102+M103+M104+M105+M106+M107 ->  | P109: Total for All Day periods
L110: =+L108 -> 13665.6 | M110: =+M108 -> 13665.6 | N110: 13665.6 | O110: 13665.6 | P110: Total for day long
A112: 10 | B112: Annual Vehicle Operating Cost for Modelled Years
D114: Annual Vehicle Operating Cost ($/year) for modelled years
D115: Start Year 2 | E115: End Year 7 | F115: Start Year 8 | G115: End Year 14 | H115: Start Year 15 | I115: End Year 30
C116: Annual VOC Cost - Do-minimum | D116: =IF($D$7 <> "Day long periods", SUM(L71:L76), L77) ->  | E116: =IF($D$7 <> "Day long periods", SUM(M71:M76), M77) ->  | F116: =IF($D$7 <> "Day long periods", SUM(M71:M76), M77) ->  | G116: =IF($D$7 <> "Day long periods", SUM(N71:N76), N77) ->  | H116: =IF($D$7 <> "Day long periods", SUM(N71:N76), N77) ->  | I116: =IF($D$7 <> "Day long periods", SUM(O71:O76), O77) -> 
C117: Annual VOC Cost - Option | D117: =IF($D$7 <> "Day long periods", SUM(L102:L107), L108) ->  | E117: =IF($D$7 <> "Day long periods", SUM(M102:M107), M108) ->  | F117: =IF($D$7 <> "Day long periods", SUM(M102:M107), M108) ->  | G117: =IF($D$7 <> "Day long periods", SUM(N102:N107), N108) ->  | H117: =IF($D$7 <> "Day long periods", SUM(N102:N107), N108) ->  | I117: =IF($D$7 <> "Day long periods", SUM(O102:O107), O108) -> 
C118: Midpoint | D118: Year 4 | F118: 11.5 | H118: 22
C119: Duration Years | D119: 6 | F119: 7 | H119: 16
C120: Do-minimum VOC at midpoint | D120: =(D116 +E116) / 2 ->  | F120: =(F116 +G116) / 2 ->  | H120: =(H116 +I116) / 2 -> 
C121: Option VOC at midpoint | D121: =(D117 +E117) / 2 ->  | F121: =(F117 +G117) / 2 ->  | H121: =(H117 +I117) / 2 -> 
A122: 11 | C122: Midpoint Benefits | D122: =D120-D121 ->  | F122: =F120-F121 ->  | H122: =H120-H121 -> 
D123: m1 | F123: m2 | H123: m3
A125: 12 | B125: PV Vehicle Operation Cost Savings
G127: [ ( m1 x 6 x 0.7416 ) + ( m2 x 7 x 0.4511 ) + ( m3 x 16 x 0.1958 ) ] | H127: =(D122*6*0.7416) + (F122*7*0.4511) + (H122 *16*0.1958) ->  | J127: D

Sheet WKS6_CRASHSAV
A1: Worksheet 6 - Crash Cost Savings
A3: 1 | B3: Project Type | C3: =WKS1_EVAL!D13 -> Isolated intersection/intersection as part of route improvement
A5: 2 | B5: Crash Summary
A12: 3 | B12: Counter Measures
A19: 4 | B19: Net PV of Crash Cost Savings (from CARS)
E21: NPV
A23: 5 | B23: Annual Crash Cost Savings
C25: NPV / 4.329906 | D25: =D21 / 4.329906 -> 0 | E25: ACCS
A27: 6 | B27: Crash Growth Rate
B29: Crash growth rate | D29: =(WKS1_EVAL!$D$52 + IF(MAX(WKS1_EVAL!D37:E37) <= 60, -0.03, -0.01) ) ->  | E29: R
B30: Discount rate | D30: 0.08 | E30: DR
B31: Discount factor crash costs | C31: {[(1-((1+R)/(1+DR))^30)/(DR-R)] - [(1-((1+R)/(1+DR))^1)/(DR-R)]} | D31: =(1-POWER((1+D29)/(1+D30), 30)) / (D30 - D29) - (1-POWER((1+D29)/(1+D30), 1)) / (0.08 - D29) ->  | E31: DFCC
A33: 7 | B33: PV Crash Cost Saving
C35: ACCS * DFCC | D35: =D25 *D31 ->  | E35: E

Sheet WKS7_INTANGIBLE
A1: Worksheet 7 - Non Tangible Benefits
A3: 1 | B3: Public Transport
B5: Effect | C5: Description | D5: Score
B6: Neutral | C6: =VLOOKUP($B6, CFG_LookupTables!$A$213:$C$217, 2, FALSE) -> No expected change on overall public transport performance with no specific new/upgraded public transport infrastructure provided or removed. | D6: =VLOOKUP($B6, CFG_LookupTables!$A$213:$C$217, 3, FALSE) -> 0
B8: Justification
A10: 2 | B10: Pedestrian Facilities
B12: Effect | C12: Description | D12: Score
B13: Neutral | C13: =VLOOKUP($B13, CFG_LookupTables!$A$197:$C$201, 2, FALSE) -> No expected change on overall pedestrian levels of service with no specific walking infrastructure improvements provided or existing facilities removed. | D13: =VLOOKUP($B13, CFG_LookupTables!$A$197:$C$201, 3, FALSE) -> 0
B15: Justification
A17: 3 | B17: Cycling Facilities
B19: Effect | C19: Description | D19: Score
B20: Neutral | C20: =VLOOKUP($B20, CFG_LookupTables!A204:C209, 2, FALSE) -> No expected change on overall cycling levels of service with no specific cycling infrastructure improvements provided or existing facilities removed. | D20: =VLOOKUP($B20, CFG_LookupTables!A204:C209, 3, FALSE) -> 0
B22: Justification
A24: 4 | B24: Street Lighting
D26: Score
D27: 0
B31: Justification
A33: 5 | B33: Road Safety
B35: Effect | C35: Description | D35: Score
B36: Neutral | C36: =VLOOKUP($B36, CFG_LookupTables!$A$225:$C$228, 2, FALSE) -> A positive (+) or negative (-) NPV score has been entered into Worksheet 6 – Crash Costs, or the proposed measures have negligible impact on road safety overall. | D36: =VLOOKUP($B36, CFG_LookupTables!$A$225:$C$228, 3, FALSE) -> 0
B38: Justification
A40: 6 | B40: Overall Score
D42: =SUM(D6, D13, D20, D27, IF(WKS6_CRASHSAV!D21 = 0, D36, 0)) -> 0 | E42: F

Sheet WKS8_OVERALL_SCORE
A1: Worksheet 8 - Overall Score
A3: 1 | B3: Present Value (PV) cost of Do-minimum
D5: =WKS2_MINCOST!H40 -> 0 | E5: A worksheet 2
A7: 2 | B7: Present Value (PV) cost of Option
D9: =WKS3_OPTCOST!H48 -> 0 | E9: B worksheet 3
A11: 3 | B11: Unconstrained Benefit values
B13: PV travel time cost savings | D13: =WKS4_TTCOSTSAV!H62 -> 0 | E13: C worksheet 4 | F13: x update factor TTC | G13: =UPDATEFACTOR_TTC -> 1.27 | I13: =D13*G13 -> 0 | J13: W
B14: PV VOC and CO2 savings | D14: =IFERROR(WKS5_VOCSAV!H127,"") ->  | E14: D worksheet 5 | F14: x update factor VOC | G14: =UPDATEFACTOR_VOC -> 1.27 | I14: =IFERROR(D14*G14,"") ->  | J14: Y
B15: PV Crash cost savings | D15: =IFERROR(WKS6_CRASHSAV!D35,"") ->  | E15: E worksheet 6 | F15: x update factor AC | G15: =UPDATEFACTOR_AC -> 1.27 | I15: =IFERROR(D15*G15,"") ->  | J15: Z
A17: 4 | B17: Ratio of Unconstrained Benefit to Cost
B19: PV net unconstrained benefits / PV net costs | E19: (W + Y + Z) / (B - A) | F19: =IFERROR(SUM(I13:I15)/(D9-D5),"") -> 
B20: Score | F20: =IFERROR(MIN(SUM(I13:I15)/(D9-D5), 50),"") -> 
A22: 5 | B22: FYRR
B24: Discount Factor VOC | E24: {(USPWF30 – USPWF1) + (R x (AGPWF30 – AGPWF1))} | F24: =IFERROR((USPWF30 - USPWF1) + (WKS1_EVAL!$D$52 / 100 * (AGPWF30 - AGPWF1)),"") -> 
B25: Discount Factor TTC | E25: {(USPWF30 – USPWF1) + (R x (AGPWF30 – AGPWF1))} | F25: =IFERROR((USPWF30 - USPWF1) + (WKS1_EVAL!$D$52 / 100 * (AGPWF30 - AGPWF1)),"") -> 
B26: Discount Factor CC | E26: {(USPWF30 – USPWF1) + (R x (AGPWF30 – AGPWF1))} | F26: =IFERROR((USPWF30 - USPWF1) + (WKS6_CRASHSAV!$D$29 / 100 * (AGPWF30 - AGPWF1)),"") -> 
B27: PV 1st Year benefits / PV net costs | E27: [(W+Y)/DF(voc&ttc)+Z/DFcc)] x 0.93 / (B - A) | F27: =IFERROR(( (I13 + I14) / F24 + I15 / F26) * 0.93 / (D9 - D5) * 100,"") ->  | G27: %
A29: 6 | B29: Non Tangible Benefit Score
F31: =WKS7_INTANGIBLE!D42 -> 0 | G31: F worksheet 7
A33: 7 | B33: Total Score
F35: =IFERROR((F20 * 0.75) + (F31*0.25),"") ->  | G35: out of a possible score of 50

Sheet CFG_ValidationTables (hidden)
A1: Dropdown Box Validation Lookup Tables
A2: All lookup tables that will be used throughout the tool for dropdown box validation must be defined here.
A3: Note: Each lookup table Named Range must be prefixed by LUT_ so that they will be grouped in the Excel Name Manager.
A5: Lookup Table Description | B5: Lookup Table Values | C5: Used By
A6: Location selection method | B6: Intersection | C6: WKS6_CRASHSAV
B7: Road-section
B8: Mid-block
A10: Intersection location selection method | B10: Intersection detail | C10: WKS6_CRASHSAV
B11: Locus detail
A13: Boolean | B13: Yes
B14: No
A16: Road Environment | B16: Built-up Road | C16: WKS6_CRASHSAV
B17: Open Road
B18: All Roads
A20: Crash Cost & Cost Savings Method | B20: Nature - Built Up | C20: WKS6_CRASHSAV
B21: Nature - Open Road
B22: Nature - All Roads
B23: Severity
A25: Road Type | B25: District Distributor A | C25: WKS1_EVAL
B26: District Distributor B
A28: Project Type | B28: Isolated intersection/intersection as part of route improvement | C28: WKS4_TTCOSTSAV
B29: Mid-block/mid-block as part of route improvement
A31: TTC Model Type | B31: AM / Inter / PM peak periods | C31: WKS4_TTCOSTSAV
B32: Day long periods
A34: Rehab Treatments | B34: Chip reseal | C34: WKS2_MINCOST
B35: 40mm asphalt overlay (intersection mix)
B36: 60mm asphalt overlay
B37: Mill and resurface with 30mm asphalt overlay
B38: 40mm SMA overlay
B39: 60mm SMA overlay
B40: Rework base & 30mm asphalt reseal
B41: 100mm granular overlay with 30mm asphalt seal
B42: Mill out, replace base & 30mm asphalt reseal
B43: Full reconstruction (remove and replace base and subbase) with 30mm asphalt seal
A45: Business Impacts | B45: Major positive | C45: WKS7_INTANGIBLE
B46: Positive
B47: Neutral
B48: Negative
B49: Major negative
A51: Community Impacts (Displacement, Accessibility and Cohesion) | B51: Major positive | C51: WKS7_INTANGIBLE
B52: Positive
B53: Neutral
B54: Negative
B55: Major negative
A57: Physical Environment | B57: Neutral | C57: WKS7_INTANGIBLE
B58: Minor
B59: Moderate
B60: Significant
A62: Cultural and Heritage Sites | B62: Neutral | C62: WKS7_INTANGIBLE
B63: Minor
B64: Major
A66: Visual Quality | B66: Major positive | C66: WKS7_INTANGIBLE
B67: Minor positive
B68: Neutral
B69: Minor negative
B70: Major negative
A72: Street Lighting | B72: Major positive | C72: WKS7_INTANGIBLE
B73: Positive
B74: Neutral
B75: Negative
A77: Pedestrian and Bicycle Facilities | B77: Major positive | C77: WKS7_INTANGIBLE
B78: Positive
B79: Neutral
B80: Negative
B81: Major negative
A83: Public Transport | B83: Major positive | C83: WKS7_INTANGIBLE
B84: Positive
B85: Neutral
B86: Negative
B87: Major negative
A89: Roughness Type | B89: IRI | C89: WKS5_VOCSAV
B90: NAASRA
A92: Strategy Fit | B92: Major positive | C92: WKS7_INTANGIBLE
B93: Major negative
A95: Number of Lanes | B95: 1 | C95: WKS1_EVAL
B96: 2
B97: 3
B98: 4
B99: 5
B100: 6
A102: Road Types | B102: Rural Road | C102: WKS1_EVAL
B103: Semi Rural
B104: Sub-Urban
B105: Urban Road
A107: Free flow speed (km/hr) | B107: 100 | C107: WKS1_EVAL
B108: 90
B109: 80
B110: 70
B111: 60
B112: 50
B113: 40
A115: Street Lighting Scores | B115: 9 | C115: WKS7_INTANGIBLE
B116: 8
B117: 7
B118: 6
B119: 5
B120: 4
B121: 3
B122: 2
B123: 1
B124: 0
B125: -1
B126: -2
B127: -3
B128: -4
B129: -5
B130: -6
B131: -7
B132: -8
B133: -9

Sheet CFG_LookupTables (hidden)
A1: VLookup Tables
A2: All lookup tables that will be used throughout the tool for VLOOKUPS must be defined here.
A3: Note: Each lookup table Named Rangemust be prefixed by LUT_ so that they will be grouped in the Excel Name Manager.
A5: Single Payment Present Worth Factor SPPWF (for 8 % discount rate)
A6: Year | B6: SPPWF
A7: 1 | B7: 0.93
A8: 2 | B8: 0.86
A9: 3 | B9: 0.79
A10: 4 | B10: 0.74
A11: 5 | B11: 0.68
A12: 6 | B12: 0.63
A13: 7 | B13: 0.58
A14: 8 | B14: 0.54
A15: 9 | B15: 0.5
A16: 10 | B16: 0.464
A17: 11 | B17: 0.43
A18: 12 | B18: 0.4
A19: 13 | B19: 0.37
A20: 14 | B20: 0.34
A21: 15 | B21: 0.32
A22: 16 | B22: 0.29
A23: 17 | B23: 0.27
A24: 18 | B24: 0.25
A25: 19 | B25: 0.23
A26: 20 | B26: 0.21
A27: 21 | B27: 0.2
A28: 22 | B28: 0.18
A29: 23 | B29: 0.17
A30: 24 | B30: 0.16
A31: 25 | B31: 0.15
A32: 26 | B32: 0.14
A33: 27 | B33: 0.13
A34: 28 | B34: 0.12
A35: 29 | B35: 0.11
A36: 30 | B36: 0.1
A38: District Distributor A & B Travel Time Costs
A39: Time period | B39: Base value of time ($/h)
A40: Weekday AM Peak | B40: 22.54
A41: Weekday Interpeak | B41: 27.01
A42: Weekday PM Peak | B42: 22.3
A43: Weekday Off Peak | B43: 22.91
A44: Weekend Peak | B44: 25.55
A45: Weekend Off Peak | B45: 24.8
A46: All periods | B46: 25.7
A48: Local Distributors / Industrial Roads Travel Time Costs
A49: Time period | B49: Base value of time ($/h)
A50: Weekday AM Peak | B50: 22.54
A51: Weekday Interpeak | B51: 27.01
A52: Weekday PM Peak | B52: 22.3
A53: Weekday Off Peak | B53: 22.91
A54: Weekend Peak | B54: 25.55
A55: Weekend Off Peak | B55: 24.8
A56: All periods | B56: 25.7
A58: Access Roads Travel Time Costs
A59: Time period | B59: Base value of time ($/h)
A60: Weekday AM Peak | B60: 25.64
A61: Weekday Interpeak | B61: 25.64
A62: Weekday PM Peak | B62: 25.64
A63: Weekday Off Peak | B63: 25.64
A64: Weekend Peak | B64: 25.64
A65: Weekend Off Peak | B65: 25.34
A66: All periods | B66: 25.77
A68: Base VOC Parameters
B69: EEM_VOC_PC | C69: EEM_VOC_LCV | D69: EEM_VOC_HCVI | E69: EEM_VOC_HCVII | F69: EEM_VOC_BUS
A70: a | B70: 24.616 | C70: 15.852 | D70: -75.602 | E70: -263.9 | F70: -125.5
A71: c | B71: 43.489 | C71: 64.641 | D71: 263.07 | E71: 469.66 | F71: 272.77
A72: e | B72: -21.157 | C72: -30.064 | D72: -101.34 | E72: -159.79 | F72: -102.11
A73: h | B73: 2.5663 | C73: 3.6463 | D73: 11.615 | E73: 17.174 | F73: 11.711
A75: Roughness Parameters
B76: EEM_VOC_PC_R | C76: EEM_VOC_LCV_R | D76: EEM_VOC_MVC_R | E76: EEM_VOC_HCVI_R | F76: EEM_VOC_HCVII_R | G76: EEM_VOC_BUS_R
A77: i | B77: -24.87 | C77: -42.613 | D77: -19.987 | E77: -32.755 | F77: -20.627 | G77: -6.1144
A78: j | B78: 77.057 | C78: 129.35 | D78: 71.074 | E78: 112.15 | F78: 77.632 | G78: 33.037
A79: k | B79: -86.517 | C79: -141.25 | D79: -91 | E79: -139.97 | F79: -108.24 | G79: -56.239
A80: m | B80: 40.422 | C80: 64.156 | D80: 47.557 | E80: 71.388 | F80: 60.487 | G80: 34.664
A81: n | B81: -5.9464 | C81: -9.4511 | D81: -7.0566 | E81: -10.51 | F81: -8.7532 | G81: -5.1337
A82: p | B82: 1.4693 | C82: 1.3664 | D82: 3.0007 | E82: 4.251 | F82: 6.559 | G82: 4.2313
A83: q | B83: 6.4171 | C83: 11.607 | D83: 12.965 | E83: 19.534 | F83: 13.63 | G83: 10.108
A84: r | B84: 0.3 | C84: 0.31 | D84: 0.55 | E84: 0.87 | F84: 1.47 | G84: 0.79
A85: s | B85: 14.2 | C85: 21.2 | D85: 28.3 | E85: 42.5 | F85: 42.5 | G85: 28.3
A86: t | B86: 4.75 | C86: 4.75 | D86: 4.75 | E86: 4.75 | F86: 4.75 | G86: 4.75
A87: u | B87: 10.5 | C87: 10.5 | D87: 10.5 | E87: 10.5 | F87: 10.5 | G87: 10.5
A89: Treatment Costs
A90: Treatment Type | B90: Cost
A91: Chip reseal | B91: 6.4
A92: 40mm asphalt overlay | B92: 17.2
A93: 60mm asphalt overlay | B93: 24
A94: Mill and resurface with 30mm asphalt overlay | B94: 23.7
A95: 40mm SMA overlay | B95: 21.5
A96: 60mm SMA overlay | B96: 29.3
A97: Rework base & 30mm asphalt reseal | B97: 27.6
A98: 100mm granular overlay with 30mm asphalt seal | B98: 33.5
A99: Mill out, replace base & 30mm asphalt reseal | B99: 40
A100: Full reconstruction (remove and replace base and subbase) with 30mm asphalt seal | B100: 68.3
A102: Road Type Rehab Treatments
A103: Road Type | B103: Treatment Type
A104: Primary Distributor | B104: 60mm SMA overlay
A105: District Distributor A | B105: 40mm SMA overlay
A106: District Distributor B | B106: 40mm SMA overlay
A107: Local Distributor | B107: 40mm Asphalt overlay
A109: Roughness Cost in cents/km
A110: IRI m/km | B110: NAASRA | C110: District Distributor A & B | D110: Local Distributors / Industrial Roads | E110: Access Roads
A111: 3 | B111: 79 | C111: 0 | D111: 0 | E111: 0
A112: 3.5 | B112: 92 | C112: 0.47 | D112: 0.47 | E112: 0.54
A113: 4 | B113: 106 | C113: 1.27 | D113: 1.27 | E113: 1.44
A114: 4.5 | B114: 119 | C114: 2.4 | D114: 2.4 | E114: 2.69
A115: 5 | B115: 132 | C115: 3.79 | D115: 3.79 | E115: 4.22
A116: 5.5 | B116: 145 | C116: 5.4 | D116: 5.4 | E116: 5.98
A117: 6 | B117: 158 | C117: 7.15 | D117: 7.15 | E117: 7.89
A118: 6.5 | B118: 172 | C118: 9 | D118: 9 | E118: 9.9
A119: 7 | B119: 185 | C119: 10.91 | D119: 10.91 | E119: 11.98
A120: 7.5 | B120: 198 | C120: 12.84 | D120: 12.84 | E120: 14.07
A121: 8 | B121: 211 | C121: 14.78 | D121: 14.78 | E121: 16.17
A122: 8.5 | B122: 224 | C122: 16.69 | D122: 16.69 | E122: 18.25
A123: 9 | B123: 238 | C123: 18.56 | D123: 18.56 | E123: 20.28
A125: Vehicle Operating Costs including CO2 emissions in cents/km by mean vehicle speed and Metropolitan Road Hierarchy standard road types (Base date July 2011)
A126: Mean vehicle speed (km/hr) | B126: District Distributor A & B | C126: Local Distributors/ Industrial Roads | D126: Access Roads
A127: 5 | B127: 54.57 | C127: 54.57 | D127: 59.04
A128: 10 | B128: 48.69 | C128: 48.69 | D128: 53.28
A129: 15 | B129: 42.82 | C129: 42.82 | D129: 47.09
A130: 20 | B130: 38.44 | C130: 38.44 | D130: 42.43
A131: 25 | B131: 35.22 | C131: 35.22 | D131: 39.01
A132: 30 | B132: 32.89 | C132: 32.89 | D132: 36.54
A133: 35 | B133: 31.2 | C133: 31.2 | D133: 34.77
A134: 40 | B134: 30.01 | C134: 30.01 | D134: 33.55
A135: 45 | B135: 29.2 | C135: 29.2 | D135: 32.74
A136: 50 | B136: 28.7 | C136: 28.7 | D136: 32.27
A137: 55 | B137: 28.45 | C137: 28.45 | D137: 32.07
A138: 60 | B138: 28.4 | C138: 28.4 | D138: 32.09
A139: 65 | B139: 28.51 | C139: 28.51 | D139: 32.29
A140: 70 | B140: 28.77 | C140: 28.77 | D140: 32.64
A141: 75 | B141: 29.14 | C141: 29.14 | D141: 33.11
A142: 80 | B142: 29.6 | C142: 29.6 | D142: 33.7
A143: 85 | B143: 30.16 | C143: 30.16 | D143: 34.38
A144: 90 | B144: 30.78 | C144: 30.78 | D144: 35.13
A145: 95 | B145: 31.47 | C145: 31.47 | D145: 35.95
A146: 100 | B146: 32.2 | C146: 32.2 | D146: 36.83
A147: 105 | B147: 32.99 | C147: 32.99 | D147: 37.77
A148: 110 | B148: 33.82 | C148: 33.82 | D148: 38.74
A149: 115 | B149: 34.68 | C149: 34.68 | D149: 39.75
A151: Business Impacts
A152: Effect | B152: Description | C152: Score
A153: Major positive | B153: It improves accessibility, and promotes business. No displacement of business properties. | C153: 5
A154: Positive | B154: It improves accessibility, however no increase in the level of business activities. No displacement of business properties. | C154: 3
A155: Neutral | B155: No change. | C155: 0
A156: Negative | B156: It reduces accessibility and decreases the level of business activities. May be a displacement of properties although negotiation over a long period ensures that owners are satisfied, move at their own time, and are unforced. | C156: -3
A157: Major negative | B157: A marked reduction in accessibility and business activities, or a forced displacement of business properties. | C157: -5
A159: Community Impacts (Displacement, Accessibility and Cohesion)
A160: Effect | B160: Description | C160: Points Score
A161: Major positive | B161: Significant improvement to vehicular accessibility within area. | C161: 5
A162: Positive | B162: Changes to land use and traffic patterns that promote community cohesion or accessibility. | C162: 3
A163: Neutral | B163: No notable change. | C163: 0
A164: Negative | B164: Changes to land use and traffic patterns that disrupt community cohesion or eventual home displacement. People will need time to adjust to changed conditions, eg road widening, relocation of general facilities or increased traffic flows, etc. | C164: -3
A165: Major negative | B165: People feel that the changes are being forced (including home displacement) on them against their will and that the existing level of cohesion cannot be regained. | C165: -5
A167: Physical Environment
A168: Effect | B168: Description | C168: Points Score
A169: Neutral | B169: No physical environmental impact. | C169: 2.5
A170: Minor | B170: Minor changes to the physical environment. Clearances from relevant environmental authorities are obtained or will be obtained. | C170: 1.5
A171: Moderate | B171: Some damages to the physical environment. Clearances from the relevant environmental authorities are obtained or will be obtained, subject to some modifications to the design or construction techniques. | C171: 1
A172: Significant | B172: Damages to physical environment is significant and warrant referral to relevant clearance authorities. Clearance authorities disagree with project proposal. | C172: 0
A174: Cultural and Heritage Sites
A175: Effect | B175: Description | C175: Points Score
A176: Neutral | B176: No loss of cultural or heritage sites. | C176: 2.5
A177: Minor | B177: Loss of cultural and heritage sites that are not listed with the registers, eg cultural landmarks such as town hall, post office, monument, shopping mall, etc. | C177: -1.5
A178: Major | B178: Loss of cultural and heritage sites that are listed with the Registers. Need formal approval from clearance authorities. | C178: -2.5
A180: Visual Quality
A181: Effect | B181: Description | C181: Points Score
A182: Major positive | B182: Marked improvement in visual quality such as installation of underground powerlines or improvement in landscape eg provision of street trees, landscaped central median. | C182: 2.5
A183: Minor positive | B183: Some improvements in the visual quality – paved central median. | C183: 1
A184: Neutral | B184: No change. | C184: 0
A185: Minor negative | B185: Local effects on visual quality, ie removal of bush land, scenic buildings etc. | C185: -1
A186: Major negative | B186: A regional impact seen from a wider area, eg cuttings on hillsides, removal of large areas of bush land or landscape, etc. Major disturbance of visual structure/land use of the area. | C186: -2.5
A188: Street Lighting
A189: Effect | B189: Description | C189: Points Score
A190: Major positive | B190: Change from service level 0 to service level 2. | C190: 3
A191: Positive | B191: Change from service level 1 to service level 2 (Note: any upgrade should meet AS1158 requirements, therefore upgrades from service level 0 to 1 receives no score.) | C191: 1
A192: Neutral | B192: No change in service level. | C192: 0
A193: Negative | B193: Existing lighting standard is reduced. | C193: -3
A195: Pedestrian Facilities
A196: Effect | B196: Description | C196: Points Score
A197: Major positive | B197: Provision of enhanced high quality pedestrian facilities along/across the road (over the route length/meeting pedestrian desire lines and connecting to other facilities) exceeding minimum standards set out in appropriate MRWA and Austroads. Any provided crossing facilities demonstrated to be appropriate based on demand and safety as well as meeting DDA requirements. High levels of existing (or expected) pedestrian activity due to adjacent land uses and/or routes along a pedestrian desire line. | C197: 10
A198: Positive | B198: Demonstrated enhancement of existing pedestrian facilities to assist walking either along or across the road with measures meeting absolute minimum standards set out in appropriate MRWA and Austroads design guides with isolated facilities to meet existing demand. Low to moderate levels of pedestrian activity adjacent to or crossing the road length. | C198: 5
A199: Neutral | B199: No expected change on overall pedestrian levels of service with no specific walking infrastructure improvements provided or existing facilities removed. | C199: 0
A200: Negative | B200: Existing pedestrian routes and facilities with low to moderate levels of pedestrian activity unduly affected causing reduced level of service along or across roads compared to existing facilities – for instance due to increased traffic/additional lanes but no complimentary crossing facilities or a reduction in footpath widths. | C200: -5
A201: Major negative | B201: Removal of any existing pedestrian facilities along and/or across the road without alternative measures of at least the same standard. Existing pedestrian routes along or across roads significantly affected causing reduced accessibility with high levels of pedestrian activity in the area due to associated land use. | C201: -10
A203: Cycling Facilities
A204: Effect | B204: Description | C204: Points Score
A205: Major positive | B205: High levels of existing (or expected) cycling activity along a recognised designated existing cycling route or a route denoted as such within a Council’s Local Bike Plan. Provision of enhanced high quality cycling facilities along/across the road length (connecting to other facilities) exceeding minimum standards set out in appropriate MRWA and Austroads design guides. Such facilities can include the provision of on-road or off-road facilities that meet as a minimum the desired standards. Any provided crossing facilities demonstrated to be appropriate based on demand and safety. | C205: 10
A206: Positive | B206: Low to moderate levels of existing (or expected) cycling activity along a recognised designated existing cycling route or a route denoted as such within a Council’s Local Bike Plan. Demonstrated enhancement of existing cycling facilities either along or across the road length under consideration with measures connecting to other facilities and meeting minimum standards set out in appropriate MRWA and Austroads design guides. | C206: 5
A207: Neutral | B207: No expected change on overall cycling levels of service with no specific cycling infrastructure improvements provided or existing facilities removed. | C207: 0
A208: Negative | B208: Existing signed/marked cycle routes and facilities with low to moderate levels of activity unduly affected causing reduced level of service along or across roads compared to existing facilities – for instance due to increased traffic/speed above expected guidelines for on-road facilities or a reduction in cycle lane/path widths. | C208: -5
A209: Major negative | B209: Removal of any existing cycle facilities along and/or across the road without alternative measures of at least the same standard from a safety and efficiency perspective. Existing cycle routes along or across roads significantly affected causing reduced accessibility with high levels of cycle activity in the area. | C209: -10
A211: Public Transport
A212: Effect | B212: Description | C212: Points Score
A213: Major positive | B213: Provision of facilities intended to enhance service reliability and reduce bus journey times over the majority of the length of the project or at specific intersections over its length (rather than isolated improvements) with measures meeting the PTA Guidelines. Such measures include those priority treatments set out in the Guideline meeting the desirable minimum Transit levels, including: • Bus/Transit lanes (including contra-flow bus lanes) • Intersection bypass lanes – queue jump facility • ITS Active/passive bus priority | C213: 15
A214: Positive | B214: Provision of facilities intended to enhance service reliability and reduce bus journey times over sections of the route or at isolated intersections with measures meeting the PTA Guidelines. Such measures include bus priority treatments identified in the PTA Guideline not meeting the desirable minimum Transit level and/or the use of other localised measures listed in the Guideline such as: • Bus only movements. • Banned turns • Removal or minor re-timing of traffic signals to better favour bus movements • Parking controls • Bus stop clearways | C214: 8
A215: Neutral | B215: No expected change on overall public transport performance with no specific new/upgraded public transport infrastructure provided or removed. | C215: 0
A216: Negative | B216: Existing public transport routes (with greater than 6 services per hour) unduly affected causing reduced service reliability and increased bus travel times, for instance due to some increased delays for buses from side roads. | C216: -8
A217: Major negative | B217: Removal of any existing public transport priority measures having an impact on service reliability and increased bus travel times. Alternatively, existing public transport routes (greater than 15 bus services per hour) significantly affected causing reduced service reliability and increased travel times and/or PTA objections. | C217: -15
A219: Strategy Fit
A220: Effect | B220: Description | C220: Points Score
... 26 more rows

Sheet CFG_Constants (hidden)
A1: Model Constants
A2: This table contains the numerical constants that are used throughout the formulae in the tool.
A3: Note: Each magic number should describe any calculations used to define the number, or a reference to the place it was obtained from.
A5: Value | B5: Code | C5: Used By | D5: Description | E5: Reference
A6: 117.1 | B6: CPI_PA_2002 | C6: WKS5_VOCSAV | D6: Perth CPI sub index for motor vehicle parts and accessories at June 2002 | E6: Australian Bureau of Statistics (2011) Historical record of CPI and sub indexes. www.abs.gov.au/AUSSTATS/abs@.nsf/DetailsPage/6401.0Dec%202010?OpenDocument
A7: 105.3 | B7: CPI_MV_2002 | C7: WKS5_VOCSAV | D7: Perth CPI sub index for motor vehicles at June 2002 | E7: Australian Bureau of Statistics (2011) Historical record of CPI and sub indexes. www.abs.gov.au/AUSSTATS/abs@.nsf/DetailsPage/6401.0Dec%202010?OpenDocument
A8: 11.4 | B8: NCP | C8: WKS5_VOCSAV | D8: Percentage of Australian car fleet that are new in % | E8: Australian Bureau of Statistics (2010) Motor Vehicle Census. 9309.0.
A9: 88.6 | B9: UCP | C9: WKS5_VOCSAV | D9: Percentage of Australian car fleet that are used in % | E9: Australian Bureau of Statistics (2010) Motor Vehicle Census. 9309.0.
A10: 71.9 | B10: RTP | C10: WKS5_VOCSAV | D10: Percentage of Australian heavy vehicle fleet that are rigid trucks in % | E10: Australian Bureau of Statistics (2002) Survey of Motor Vehicle Use. 9208.0.
A11: 13.7 | B11: ATP | C11: WKS5_VOCSAV | D11: Percentage of Australian heavy vehicle fleet that are articulated trucks in % | E11: Australian Bureau of Statistics (2002) Survey of Motor Vehicle Use. 9208.0.
A12: 14.4 | B12: BP | C12: WKS5_VOCSAV | D12: Percentage of Australian hevay vehicle fleet that are buses in % | E12: Australian Bureau of Statistics (2002) Survey of Motor Vehicle Use. 9208.0.
A13: 41.2 | B13: PP_2002 | C13: WKS5_VOCSAV | D13: 2002 resource petrol price in c/l | E13: Austroads (2004) Economic Evaluation of Road Investment Proposals, Unit Values for Road User Costs at June 2002. AP-R241.
A14: 45.4 | B14: DP_2002 | C14: WKS5_VOCSAV | D14: 2002 resource diesel price in c/l | E14: Austroads (2004) Economic Evaluation of Road Investment Proposals, Unit Values for Road User Costs at June 2002. AP-R241.
A15: =1/9.4 -> 0.1063829787 | B15: LPKM_C | C15: WKS5_VOCSAV | D15: Approximate fuel use rate for passenger cars in litres/km
A16: =1/7.48 -> 0.1336898396 | B16: LPKM_L | C16: WKS5_VOCSAV | D16: Approximate fuel use rate for LCV's in litres/km
A17: =1/5.74 -> 0.1742160279 | B17: LPKM_H | C17: WKS5_VOCSAV | D17: Approximate fuel use rate for HCV/BUS's in litres/km
A18: 0.37 | B18: F_P_L | C18: WKS5_VOCSAV | D18: (Petrol-powered LCV fuel-consumption as percentage of (petrol and diesel)-powered LCV fuel -consumption)/100
A19: 0.43 | B19: f_HCVI_EEM | C19: WKS5_VOCSAV | D19: Fraction of the Australian heavy vehicle fleet comprised of HCVI's
A20: 0.42 | B20: f_HCVII_EEM | C20: WKS5_VOCSAV | D20: Fraction of the Australian heavy vehicle fleet comprised of HCVII's
A21: 0.15 | B21: f_BUS_EEM | C21: WKS5_VOCSAV | D21: Fraction of the Australian heavy vehicle fleet comprised of Bus's
A22: 891 | B22: NZ_CPI_2002 | C22: WKS5_VOCSAV | E22: http://www.rbnz.govt.nz/statistics/0135595.html
A23: 1061 | B23: NZ _CPI_2008 | C23: WKS5_VOCSAV | E23: http://www.rbnz.govt.nz/statistics/0135595.html
A24: 1.27 | B24: UPDATEFACTOR_TTC | C24: WKS1_EVAL | D24: Update factor TTC | E24: ABS Catalogue 5206.0 GDP Seasonally Adjusted Implicit Price Deflators Series A2303730T: (Jun 2022/Jun 2011)
A25: 1.27 | B25: UPDATEFACTOR_VOC | C25: WKS1_EVAL | D25: Update factor VOC | E25: ABS Catalogue 5206.0 GDP Seasonally Adjusted Implicit Price Deflators Series A2303730T: (Jun 2022/Jun 2011)
A26: 1.27 | B26: UPDATEFACTOR_AC | C26: WKS1_EVAL | D26: Update factor AC | E26: ABS Catalogue 5206.0 GDP Seasonally Adjusted Implicit Price Deflators Series A2303730T: (Jun 2022/Jun 2011)
A27: 1 | B27: DISCOUNTFACTOR_VOC | C27: WKS1_EVAL | D27: Discount factor VOC
A28: 1 | B28: DISCOUNTFACTOR_AC | C28: WKS1_EVAL | D28: Discount factor AC
A29: 11.7023 | B29: DISCOUNTFACTOR_PV_DOMIN | C29: WKS2_MINCOST | D29: Discount Factor PV Do-minimum
A30: 10.7398 | B30: DISCOUNTFACTOR_PV_OPT | C30: WKS3_OPTCOST | D30: Discount Factor PV Option
A31: 160.2 | B31: FUEL_CONSUMPTION_TOTAL | C31: WKS5_VOCSAV | D31: Fuel Consumption (Total) L/h | E31: Figure 3.2 of Microsoft Word document titled "Urban Vehicle Operating Cost Model for the Shire of Mundaring".
A32: 1482.7 | B32: TRAVEL_DISTANCE_TOTAL | C32: WKS5_VOCSAV | D32: Travel Distance (Total) veh km/h | E32: Figure 3.2 of Microsoft Word document titled "Urban Vehicle Operating Cost Model for the Shire of Mundaring".
A33: 11.7023 | B33: USPWF30 | C33: WKS1_EVAL | D33: Single Payment Present Worth Factor for Year 30
A34: 0.9625 | B34: USPWF1 | C34: WKS1_EVAL | D34: Single Payment Present Worth Factor for Year 1
A35: 113.3171 | B35: AGPWF30 | C35: WKS1_EVAL | D35: Arithmetic Growth Present Worth Factor for Year 30
A36: 0.4751 | B36: AGPWF1 | C36: WKS1_EVAL | D36: Arithmetic Growth Present Worth Factor for Year 1
